Workbook

Sheet Úvod
A1: CwC - Crack Width Calculator
A2: verze 1.0
A3: Program pro přímý výpočet šířky trhlin prvku namáhaného momentem a normálovou silou dle metodiky ČSN EN 1992-1-1
A6: Instrukce:
A7: Pro funkčnost pomůcky je nutné mít zapnuty a povoleny makra.
A8: Pro správnou funkčnost spouštějte pomůcku v programu Microsoft Excel 2010 nebo starší.
A9: Vyplňte pouze buňky na listě pro zadání vstupních hodnot (následující list) označené barvou
A10: Pro přechod mezi jednotlivými kroky využívejte výhradně tlačítka umístěna na konci listů.
A14: Autoři: Jakub Holan, Radek Štefan
A15: Kontakty: jakub.holan@fsv.cvut.cz, radek.stefan@fsv.cvut.cz
A16: Vypracováno na katedře betonových a zděných konstrukcí, Fakulta stavební, ČVUT v Praze. Tato práce byla podpořena grantem Studentské grantové soutěže ČVUT č. SGS19/034/OHK1/1T/11.

Sheet Kr1-GMZ (hidden)
A1: Krok 1 - Zadání vstupních hodnot | L1: Krok4-Varianta3: Průměr výztuže = (hodnota v buňce pod touto)
L2: =(D24*E24^2+D25*E25^2)/(D24*E24+D25*E25) -> 20
A3: Geometrie
B4: h = | C4: 500 | D4: mm | F4: c = | G4: 30 | H4: mm | L4: Krátkodobé
B5: b = | C5: 300 | D5: mm | F5: ⌀tř = | G5: 6 | H5: mm | L5: Dlouhodobé
B6: AC = | C6: =C4*C5 -> 150000 | D6: mm2
B7: aC = | C7: =C4/2 -> 250 | D7: mm | L7: Výztuž soudržná
L8: Výztuž nesoudržná
A9: Materiálové charakteristiky
B10: Beton: | C10: C 30/37 | F10: Ocel: | G10: B500B | L10: Výztuž s žebírkovým povrchem
B11: fck = | C11: ='Třídy materiálů'!S2 -> 30 | D11: MPa | F11: fyk = | G11: ='Třídy materiálů'!S13 -> 500 | H11: MPa | L11: Výztuž s hladkým povrchem
B12: fcd = | C12: =C11/1.5 -> 20 | D12: MPa | F12: fyd = | G12: 434.7826087 | H12: MPa
B13: fctm = | C13: ='Třídy materiálů'!S4 -> 2.9 | D13: MPa | F13: Es = | G13: ='Třídy materiálů'!S14 -> 200 | H13: GPa | L13: Ohyb
B14: fctk0.05 = | C14: ='Třídy materiálů'!S5 -> 2 | D14: MPa | F14: αe = | G14: =G13/C15 -> 6.25 | L14: Prostý tah
B15: Ecm = | C15: ='Třídy materiálů'!S7 -> 32 | D15: GPa | L15: Mimostředný tah/místní namáhání
B16: εc = | C16: ='Třídy materiálů'!S8 -> 2.2 | D16: ‰ | F16: Frakce kameniva:
B17: εcu = | C17: ='Třídy materiálů'!S9 -> 3.5 | D17: ‰ | F17: Dmax = | G17: 16 | H17: mm | L17: εc = | M17: =C16/1000 -> 0.0022
L18: εcu = | M18: =C17/1000 -> 0.0035
A19: Výztuž | L19: Ecm = | M19: =C15 -> 32 | N19: GPa
B20: Typ: | C20: Výztuž soudržná
B21: Typ: | C21: Výztuž s žebírkovým povrchem
C22: i | D22: n | E22: ⌀ | F22: AS | G22: a | H22: d | I22: d' | J22: sa | L22: d je vzdálenost výztuže od tlačených vláken
E23: mm | F23: mm2 | G23: mm | H23: mm | I23: mm | J23: mm | L23: d' je vzdálenost výztuže od horních vláken
C24: 1 | D24: 5 | E24: 20 | F24: =D24*PI()*(E24^2)/4 -> 1570.796327 | G24: =G4+G5+E24/2 -> 46 | H24: =IF(C31<0,(G24),(C4-G24)) -> 454 | I24: =C4-G24 -> 454 | J24: =(C5-2*G4-2*G5-E24)/(D24-1) -> 52
C25: 2 | D25: 3 | E25: 20 | F25: =D25*PI()*(E25^2)/4 -> 942.4777961 | G25: =G4+G5+E25/2 -> 46 | H25: =IF(C31<0,(C4-G25),(G25)) -> 46 | I25: =G25 -> 46 | J25: =(C5-2*G4-2*G5-E25)/(D25-1) -> 104
A27: Zatížení
B28: Doba trvání: | D28: Dlouhodobé
B29: Typ namáhání: | D29: Ohyb | M29: Nkd = | N29: =IF(C30=0,(10^(-20)),(C30)) -> 1 | O29: kN
B30: Nkd = | C30: 1 | D30: kN
B31: Mkd = | C31: 250 | D31: kNm | M31: ekd = | N31: =(C31/N29)*1000 -> 250000 | O31: mm
B33: ekd = | C33: =IF(C30=0,"-",N31) -> 250000 | D33: mm
B35: Pozn.:
B36: Nkd je působící normálová síla vztažená k těžisti betonového průřezu.
B37: Mkd je působící ohybový moment vztažený k těžisti betonového průřezu.
B38: Klasická znaménková konvekce:
C39: Kladná osová síla značí tah.
C40: Kladný moment vyvozuje ve spodních vláknech tahy.
B41: Výztuž číslo 1 značí výztuž u dolního povrchu.
B42: Výztuž číslo 2 značí výztuž u horního povrchu.
A45: Zakreslení působení sil na příkladu taženého prvku:

Sheet Kr2-An (hidden)
A1: Krok 2 - Analýza vzniku trhlin
K2: i | L2: n | M2: ⌀ | N2: AS | O2: a | P2: d | Q2: d' | R2: sa | T2: hc = | U2: ='Kr1-GMZ'!C4 -> 500 | V2: mm
A3: Působící normálová síla vztažená k těžisti betonového průřezu: | M3: mm | N3: mm2 | O3: mm | P3: mm | Q3: mm | R3: mm | T3: bc = | U3: ='Kr1-GMZ'!C5 -> 300 | V3: mm
A4: Nkd = | B4: ='Kr1-GMZ'!N29 -> 1 | C4: kN | K4: ='Kr1-GMZ'!C24 -> 1 | L4: ='Kr1-GMZ'!D24 -> 5 | M4: ='Kr1-GMZ'!E24 -> 20 | N4: ='Kr1-GMZ'!F24 -> 1570.796327 | O4: ='Kr1-GMZ'!G24 -> 46 | P4: ='Kr1-GMZ'!H24 -> 454 | Q4: ='Kr1-GMZ'!I24 -> 454 | R4: ='Kr1-GMZ'!J24 -> 52 | T4: Ac = | U4: ='Kr1-GMZ'!C6 -> 150000 | V4: mm2
B5: =1000*B4 -> 1000 | C5: N | K5: ='Kr1-GMZ'!C25 -> 2 | L5: ='Kr1-GMZ'!D25 -> 3 | M5: ='Kr1-GMZ'!E25 -> 20 | N5: ='Kr1-GMZ'!F25 -> 942.4777961 | O5: ='Kr1-GMZ'!G25 -> 46 | P5: ='Kr1-GMZ'!H25 -> 46 | Q5: ='Kr1-GMZ'!I25 -> 46 | R5: ='Kr1-GMZ'!J25 -> 104 | T5: αe = | U5: ='Kr1-GMZ'!G14 -> 6.25
A6: Působící ohybový moment vztažený k těžisti betonového průřezu: | M6: Nehýbat
A7: Mkd = | B7: ='Kr1-GMZ'!C31 -> 250 | C7: kNm
B8: =1000*B7 -> 250000 | C8: Nm | M8: Varianta 1: Trhliny nevznikají => Výpočet napětí lze provést s charakteristikami ideálního průřezu
A9: Výstřednost působící síly měřena od těžiště betonové části průřezu: | M9: Varianta 2: V průřezu vzniknou trhliny a existuje i tlačená část
A10: ekd = | B10: =B7/B4 -> 250 | C10: m | M10: Varianta 3: Trhlinou zcela porušený průřez
M11: Varianta 3: Celý průřez tažen a pevnost betonu v tahu překročena
A12: Plocha ideálního průřezu: | G12: Ai = | H12: =(U4+(U5)*(N4+N5))/10^6 -> 0.1657079633 | I12: m2 | M12: Nehýbat
A13: Moment setrvačnosti ideálního průřezu k jeho těžišti | G13: Ii = | H13: =((1/12)*U3*U2^3+U4*(1000*H14-1000*H16)^2+(U5)*(N4*(Q4-1000*H14)^2+N5*(Q5-1000*H14)^2))/10^12 -> 0.003774829695 | I13: m4
A14: Vzdálenost těžistě ideálního průřezu od horního okraje: | G14: agi = | H14: =((U4*1000*H16+(U5)*(N4*Q4+N5*Q5))/(H12*10^6))/1000 -> 0.2548344456 | I14: m
A15: Výška průřezu: | G15: h = | H15: ='Kr1-GMZ'!C4/10^3 -> 0.5 | I15: m
A16: Vzdálenost těžiště betonové části průřezu od horních vláken: | G16: ac = | H16: ='Kr1-GMZ'!C7/1000 -> 0.25 | I16: m
A18: Působící ohyb. moment vztažený k těžisti ideálního průřezu: | G18: Mkdi = | H18: =B5*(B10-(H14-H16)) -> 249995.1656 | I18: Nm
A20: σh = | B20: =(B5/H12-(H18*H14/H13))/10^6 -> -16.87085366 | C20: MPa | D20: =IF(B20<E20,"<",">") -> < | E20: ='Kr1-GMZ'!C13 -> 2.9 | F20: MPa | G20: = fct,eff
A21: σd = | B21: =(B5/H12+(H18*(H15-H14)/H13))/10^6 -> 16.24258267 | C21: MPa | D21: =IF(B21<E21,"<",">") -> > | E21: ='Kr1-GMZ'!C13 -> 2.9 | F21: MPa | G21: = fct,eff
B23: =IF(AND(B20<E20,B21<E21),M8,IF(OR(AND(B20>E20,B21<0),AND(B21>E21,B20<0)),M9,IF(AND(B20>E20,B21>E21),M10,IF(OR(AND(B20<E20,B21>E21),AND(B20>E20,B21<E21)),M11,"Chyba 0001")))) -> Varianta 2: V průřezu vzniknou trhliny a existuje i tlačená část

Sheet Kr2-AnOh (hidden)
A1: Krok 2 - Analýza vzniku trhlin při prostém ohybu
K2: i | L2: n | M2: ⌀ | N2: AS | O2: a | P2: d | Q2: d' | R2: sa
A3: Působící ohybový moment vztažený k těžisti betonového průřezu: | M3: mm | N3: mm2 | O3: mm | P3: mm | Q3: mm | R3: mm
A4: Mkd = | B4: ='Kr1-GMZ'!C31 -> 250 | C4: kNm | K4: ='Kr1-GMZ'!C24 -> 1 | L4: ='Kr1-GMZ'!D24 -> 5 | M4: ='Kr1-GMZ'!E24 -> 20 | N4: ='Kr1-GMZ'!F24 -> 1570.796327 | O4: ='Kr1-GMZ'!G24 -> 46 | P4: ='Kr1-GMZ'!H24 -> 454 | Q4: ='Kr1-GMZ'!I24 -> 454 | R4: ='Kr1-GMZ'!J24 -> 52
B5: =1000*B4 -> 250000 | C5: Nm | K5: ='Kr1-GMZ'!C25 -> 2 | L5: ='Kr1-GMZ'!D25 -> 3 | M5: ='Kr1-GMZ'!E25 -> 20 | N5: ='Kr1-GMZ'!F25 -> 942.4777961 | O5: ='Kr1-GMZ'!G25 -> 46 | P5: ='Kr1-GMZ'!H25 -> 46 | Q5: ='Kr1-GMZ'!I25 -> 46 | R5: ='Kr1-GMZ'!J25 -> 104
M6: Nehýbat
A7: Výška průřezu: | G7: h = | H7: ='Kr1-GMZ'!C4/10^3 -> 0.5 | I7: m
A8: Plocha ideálního průřezu: | G8: Ai = | H8: =('Kr1-GMZ'!C6+('Kr1-GMZ'!G14)*('Kr1-GMZ'!F24+'Kr1-GMZ'!F25))/10^6 -> 0.1657079633 | I8: m2 | K8: AC = | L8: ='Kr1-GMZ'!C6 -> 150000 | M8: ='Kr1-GMZ'!D6 -> mm2 | O8: ='Kr1-GMZ'!B4 -> h = | P8: ='Kr1-GMZ'!C4 -> 500 | Q8: ='Kr1-GMZ'!D4 -> mm
A9: Moment setrvačnosti ideálního průřezu k jeho těžišti | G9: Ii = | H9: =((1/12)*P9*P8^3+L8*(1000*H10-L9)^2+('Kr1-GMZ'!G14)*(N4*(Q4-1000*H10)^2+N5*(Q5-1000*H10)^2))/10^12 -> 0.003774829695 | I9: m4 | K9: aC = | L9: ='Kr1-GMZ'!C7 -> 250 | M9: ='Kr1-GMZ'!D7 -> mm | O9: ='Kr1-GMZ'!B5 -> b = | P9: ='Kr1-GMZ'!C5 -> 300 | Q9: ='Kr1-GMZ'!D5 -> mm
A10: Vzdálenost těžistě ideálního průřezu od horního okraje: | G10: agi = | H10: =((L8*L9+('Kr1-GMZ'!G14)*(N4*Q4+N5*Q5))/(H8*10^6))/1000 -> 0.2548344456 | I10: m
K11: Vzdálenost těžistě ideálního průřezu od taženého okraje: | Q11: ed = | R11: =H7-H10 -> 0.2451655544 | S11: m
A14: σh = | B14: =-((B5/H9)*H10)*10^(-6) -> -16.87721474 | C14: MPa | D14: =IF(B14<E14,"<",">") -> < | E14: ='Kr1-GMZ'!C13 -> 2.9 | F14: MPa | G14: = fct,eff
A15: σd = | B15: =((B5/H9)*(H7-H10))*10^(-6) -> 16.23686194 | C15: MPa | D15: =IF(B15<E15,"<",">") -> > | E15: ='Kr1-GMZ'!C13 -> 2.9 | F15: MPa | G15: = fct,eff
A17: =IF(AND(B14<E14,B15<E15),"Varianta 1: Trhliny nevznikají => Výpočet napětí lze provést s charakteristikami ideálního průřezu",IF(OR(AND(B14>E14,B15<0),AND(B15>E15,B14<0)),"Varianta 2: V průřezu vzniknou trhliny a existuje i tlačená část",IF(AND(B14>E14,B15>E15),"Varianta 3: Trhlinou zcela porušený průřez",IF(OR(AND(B14<E14,B15>E15),AND(B14>E14,B15<E15)),"Varianta 3: Celý průřez tažen","Chyba 0001")))) -> Varianta 2: V průřezu vzniknou trhliny a existuje i tlačená část

Sheet Kr3-Oh (hidden)
A1: Krok 3 - Napjatost průřezu prostě ohýbaného prvku | K1: Prostý ohyb:
K2: x^2 + | L2: =2*H9*(B5+B6)/H8 -> 104.7197551 | M2: *x - | N2: =2*H9*(B5*C5+B6*C6)/H8 -> 31520.64629 | O2: = 0
A3: Výztuž: | B3: AS | C3: d | E3: Zatížení: | F3: Mkd = | G3: ='Kr2-An'!B7 -> 250 | H3: kNm | N3: =L4*L4+L2*L4-N2 -> 5340.707511 | O3: = 0
B4: mm2 | C4: mm | G4: =1000*G3 -> 250000 | H4: Nm | K4: x= | L4: 146.6449228
A5: 1 | B5: ='Kr1-GMZ'!F24 -> 1570.796327 | C5: ='Kr1-GMZ'!H24 -> 454
A6: 2 | B6: ='Kr1-GMZ'!F25 -> 942.4777961 | C6: ='Kr1-GMZ'!H25 -> 46
A8: Šířka průřezu: | G8: b = | H8: ='Kr1-GMZ'!C5 -> 300 | I8: mm
A9: Poměr modulu pružnosti betonu a modulu pružnosti výztuže: | G9: αe = | H9: ='Kr1-GMZ'!G14 -> 6.25
B11: Vzorec pro výpočet výšky tlačené oblasti betonu:
A16: Výška tlačené oblasti: | G16: x = | H16: =(H9/H8)*(B5+B6)*(-1+SQRT(1+(2*H8/H9)*((B5*C5+B6*C6)/((B5+B6)^2)))) -> 132.740644 | I16: mm
A17: Vzdálenost těžistě tlačené oblasti od horního okraje: | G17: xc = | H17: =H16/2 -> 66.37032198 | I17: mm
A18: Plocha tlačené části betonového průřezu: | G18: Acc = | H18: =H16*H8 -> 39822.19319 | I18: mm2
A20: Moment setrvačnosti ideálního průřezu k jeho těžišti | G20: Ii = | H20: =((H8*H16^3)/3)+(H9)*(B5*(H16-C5)^2+B6*(H16-C6)^2) -> 1291447705 | I20: mm4
A22: Napětí v krajních vláknech betonového průřezu: | G22: σc = | H22: =-(1000*(ABS(G4))/H20)*H16 -> -25.69609351 | I22: MPa | N22: fck = | O22: ='Kr1-GMZ'!C11 -> 30 | P22: MPa | Q22: <= Nehýbat - pracuje s tím VBA
A23: Napětí ve výztuži 1: | G23: σS1 = | H23: =IF(B5=0,0,(H9*(1000*ABS(G4)/H20)*(C5-H16))) -> 388.6860783 | I23: MPa | J23: <= Nehýbat - pracuje s tím VBA | N23: fyd = | O23: ='Kr1-GMZ'!G11 -> 500 | P23: MPa | Q23: <= Nehýbat - pracuje s tím VBA
A24: Napětí ve výztuži 2: | G24: σS2 = | H24: =IF(B6=0,0,(H9*(1000*ABS(G4)/H20)*(C6-H16))) -> -104.9459886 | I24: MPa | J24: <= Nehýbat - pracuje s tím VBA | O24: =-O23 -> -500 | P24: MPa | Q24: <= Nehýbat - pracuje s tím VBA
A26: Síla v tlačené části betonového průřezu: | G26: Fcc = | H26: =H18*(H22/2)/1000 -> -511.6373999 | I26: kN
A27: Síla ve výztuži 1: | G27: FS1 = | H27: =H23*B5/1000 -> 610.546664 | I27: kN
A28: Síla ve výztuži 2: | G28: FS2 = | H28: =H24*B6/1000 -> -98.90926408 | I28: kN
E33: =IF(OR(H23<O24,H23>O23,H24<O24,H24>O23,ABS(H22)>O22),"Napětí ve výztuži je větší než napětí na mezi kluzu!","") -> 
E34: =IF(OR(H23<O24,H23>O23,H24<O24,H24>O23,ABS(H22)>O22),"Neplatí předpoklad přímé úměrnosti napětí a přetvoření! Výsledky tedy nejsou platné!","") -> 

Sheet Kr3-M+N (hidden)
A1: Krok 3 - Napjatost průřezu s trhlinou a tlačenou částí
A3: Výztuž: | B3: AS | C3: d | E3: Zatížení: | F3: Nkd = | G3: ='Kr2-An'!B4 -> 1 | H3: kN | K3: Vzorec ze skript: x^3+3*x^2*e+6*(α/b)*(As1*(d-e)+As2*(d2-e))*x-6*(α/b)*(As1*d*(d-e)+As2*d2*(d2-e)) = 0 | O3: Kontrola dle mého odvozeného vzorce:
B4: mm2 | C4: mm | G4: =1000*G3 -> 1000 | H4: N
A5: 1 | B5: ='Kr1-GMZ'!F24 -> 1570.796327 | C5: ='Kr1-GMZ'!H24 -> 454 | F5: Mkd = | G5: ='Kr2-An'!B7 -> 250 | H5: kNm | K5: =H20^3-3*H20^2*H11+6*((H10)/H9)*(B5*(C5-H11)+B6*(C6-H11))*H20-6*((H10)/H9)*(B5*C5*(C5-H11)+B6*C6*(C6-H11)) -> 0 | L5: = | M5: 0 | O5: =(6*H10/H9)*(B5*(C5-H20)*(C5-H11)+B6*(H20-C6)*(H11-C6))+3*H20*H20*H11-H20*H20*H20 -> 5.283858627e-06 | P5: = | Q5: 0
A6: 2 | B6: ='Kr1-GMZ'!F25 -> 942.4777961 | C6: ='Kr1-GMZ'!H25 -> 46 | G6: =1000*G5 -> 250000 | H6: Nm
K7: 1 | L7: x^3
A8: Vzdálenost těžiště betonové části průřezu od tlač. vláken: | G8: ac = | H8: ='Kr1-GMZ'!C7 -> 250 | I8: mm | K8: =-3*H11 -> -750750 | L8: x^2
A9: Šířka průřezu: | G9: b = | H9: ='Kr1-GMZ'!C5 -> 300 | I9: mm | K9: =6*(H10/H9)*(B5*(C5-H11)+B6*(C6-H11)) -> -78523794.22 | L9: x | O9: Ecm | P9: ='Kr1-GMZ'!M19 -> 32 | Q9: GPa
A10: Poměr modulu pružnosti betonu a modulu pružnosti výztuže: | G10: αe = | H10: ='Kr1-GMZ'!G14 -> 6.25 | K10: =-6*(H10/H9)*(B5*C5*(C5-H11)+B6*C6*(C6-H11)) -> 2.362340514e+10 | O10: Es = | P10: ='Kr1-GMZ'!G13 -> 200 | Q10: GPa
A11: Výstřednost síly měřena od tlačených vláken: | G11: e = | H11: =SIGN('Kr1-GMZ'!C31)*'Kr1-GMZ'!N31+'Kr1-GMZ'!C7 -> 250250 | I11: mm | K11: ="plot y="&L7&IF(K8>0,"+","")&K8&L8&IF(K9>0,"+","")&K9&L9&IF(K10>0,"+","")&K10 -> plot y=x^3-750750x^2-78523794.2172115x+23623405135.6427
O12: Výpočty dle vzorců mnou odvozených:
B13: Rovnice pro výpočet výšky tlačené oblasti betonu: | O13: εc | P13: =G3/(P10*(-B5*((C5-H20)/H20)+B6*((H20-C6)/H20))+(H9/2)*H20*P9) -> -0.0008028166618
O14: εS1 | P14: =-P13*(C5-H20)/H20 -> 0.001944904832
O15: εS2 | P15: =P13*(H20-C6)/H20 -> -0.0005244131625
G16: =K5 -> 0 | H16: = 0
O18: σcc | P18: =P13*P9*1000 -> -25.69013318 | Q18: MPa
O19: σS1 | P19: =P14*P10*1000 -> 388.9809663 | Q19: MPa
A20: Výška tlačené oblasti: | G20: x = | H20: 132.6476374 | I20: mm | O20: σS2 | P20: =P15*P10*1000 -> -104.8826325 | Q20: MPa
A21: Vzdálenost těžistě tlačené oblasti od horního okraje: | G21: xc = | H21: =H20/2 -> 66.32381872 | I21: mm
O22: Fcc | P22: =(H9*H20/2)*P13*P9 -> -511.1603208 | Q22: kN
A23: Plocha tlačené části betonového průřezu: | G23: Acc = | H23: =H20*H9 -> 39794.29123 | I23: mm2 | O23: FS1 | P23: =B5*P14*P10 -> 611.0098731 | Q23: kN
A24: Moment setrvačnosti tlačené části bet. průřezu k jeho těžišti: | G24: Icc = | H24: =(1/12)*H9*H20^3 -> 58349691.81 | I24: mm4 | O24: FS2 | P24: =B6*P15*P10 -> -98.84955232 | Q24: kN
O25: ΣFi | P25: =SUM(P22:P24) -> 1 | Q25: kN
A26: Plocha ideálního průřezu: | G26: Ai = | H26: =H23+(H10)*(B5+B6) -> 55502.2545 | I26: mm2
A27: Moment setrvačnosti ideálního průřezu k jeho těžišti | G27: Ii = | H27: =H24+H23*(H28-H21)^2+(H10)*(B5*(C5-H28)^2+B6*(H28-C6)^2) -> 1291447705 | I27: mm4 | L27: Prostý ohyb:
A28: Vzdálenost těžistě ideálního průřezu od tlačeného okraje: | G28: agi = | H28: =(H23*H21+(H10)*(B5*C5+B6*C6))/H26 -> 132.7406673 | I28: mm | L28: x^2 + | M28: =2*H10*(B5+B6)/H9 -> 104.7197551 | N28: *x - | O28: =2*H10*(B5*C5+B6*C6)/H9 -> 31520.64629 | P28: = 0
O29: =M30*M30+M28*M30-O28 -> -8581.389444 | P29: = 0
A30: Napětí v krajních vláknech betonového průřezu: | G30: σc = | H30: =(G4/H26)*(1+H26*(H28-H11)*(H28/H27)) -> -25.69013318 | I30: MPa | J30: <= Nehýbat - pracuje s tím VBA | L30: x= | M30: 107.892466
A31: Napětí ve výztuži 1: | G31: σS1 = | H31: =IF(B5=0,0,(G4/H26)*(1+H26*(H28-H11)*((H28-C5)/H27))*H10) -> 388.9809663 | I31: MPa | J31: <= Nehýbat - pracuje s tím VBA
A32: Napětí ve výztuži 2: | G32: σS2 = | H32: =IF(B6=0,0,(G4/H26)*(1+H26*(H28-H11)*((H28-C6)/H27))*H10) -> -104.8826325 | I32: MPa | J32: <= Nehýbat - pracuje s tím VBA
O33: fck = | P33: ='Kr1-GMZ'!C11 -> 30 | Q33: MPa | R33: <= Nehýbat - pracuje s tím VBA
A34: Síla v tlačené části betonového průřezu: | G34: Fcc = | H34: =H23*(H30/2)/1000 -> -511.1603208 | I34: kN | O34: fyd = | P34: ='Kr1-GMZ'!G11 -> 500 | Q34: MPa | R34: <= Nehýbat - pracuje s tím VBA
A35: Síla ve výztuži 1: | G35: FS1 = | H35: =H31*B5/1000 -> 611.0098731 | I35: kN | P35: =-P34 -> -500 | Q35: MPa | R35: <= Nehýbat - pracuje s tím VBA
A36: Síla ve výztuži 2: | G36: FS2 = | H36: =H32*B6/1000 -> -98.84955232 | I36: kN
E40: =IF(OR(H31<P35,H31>P34,H32<P35,H32>P34,ABS(H30)>P33),"Napětí ve výztuži je větší než napětí na mezi kluzu!","") -> 
E41: =IF(OR(H31<P35,H31>P34,H32<P35,H32>P34,ABS(H30)>P33),"Neplatí předpoklad přímé úměrnosti napětí a přetvoření! Výsledky tedy nejsou platné!","") -> 

Sheet Kr3-Tah (hidden)
A1: Krok 3 - Napjatost průřezu zcela porušeného trhlinou
A3: Výztuž: | B3: As | C3: d' | E3: Zatížení: | F3: Nkd = | G3: ='Kr1-GMZ'!C30 -> 1 | H3: kN
B4: mm2 | C4: mm | G4: =1000*G3 -> 1000 | H4: N
A5: 1 | B5: ='Kr1-GMZ'!F24 -> 1570.796327 | C5: ='Kr1-GMZ'!I24 -> 454 | F5: Mkd = | G5: ='Kr1-GMZ'!C31 -> 250 | H5: kNm
A6: 2 | B6: ='Kr1-GMZ'!F25 -> 942.4777961 | C6: ='Kr1-GMZ'!I25 -> 46 | G6: =1000*G5 -> 250000 | H6: Nm
A8: Vzdálenost působící síly od horního okraje: | G8: e' = | H8: ='Kr1-GMZ'!N31+'Kr1-GMZ'!C7 -> 250250 | I8: mm
A9: Modul pružnosti výztuže : | G9: Es = | H9: ='Kr1-GMZ'!G13 -> 200 | I9: GPa | K9: fctm/Ec = | L9: ='Kr1-GMZ'!C13/(1000*'Kr1-GMZ'!M19) -> 9.0625e-05
K10: * Es = | L10: =L9*H9*1000 -> 18.125
A11: Plocha ideálního průřezu: | G11: As = | H11: =(B5+B6) -> 2513.274123 | I11: mm2
A12: Moment setrvačnosti ideálního průřezu k jeho těžišti | G12: Is = | H12: =(B5*(C5-H13)^2+B6*(H13-C6)^2) -> 98055389.9 | I12: mm4
A13: Vzdálenost těžistě ideálního průřezu od horního okraje: | G13: ags = | H13: =(B5*C5+B6*C6)/H11 -> 301 | I13: mm
A15: Napětí ve výztuži 1: | G15: σS1 = | H15: =((G4/H11)+((G4*(H13-H8)/H12)*(H13-C5))) -> 390.4039547 | I15: MPa | K15: <= Nehýbat - používáno makry
A16: Napětí ve výztuži 2: | G16: σS2 = | H16: =((G4/H11)+((G4*(H13-H8)/H12)*(H13-C6))) -> -649.6122249 | I16: MPa | K16: <= Nehýbat - používáno makry
K17: fyk = | L17: ='Kr1-GMZ'!G11 -> 500 | M17: MPa | N17: <= Nehýbat - používáno makry
A18: Deformace výztuže 1: | G18: εs1 = | H18: =H15/(1000*H9) -> 0.001952019774
A19: Deformace výztuže 2: | G19: εs2 = | H19: =H16/(1000*H9) -> -0.003248061125
A21: Síla ve výztuži 1: | G21: FS1 = | H21: =H15*B5/1000 -> 613.245098 | I21: kN
A22: Síla ve výztuži 2: | G22: FS2 = | H22: =H16*B6/1000 -> -612.245098 | I22: kN
E26: =IF(OR(H15>L17,H16>L17),"Napětí ve výztuži je větší než napětí na mezi kluzu!","") -> 
E27: =IF(OR(H15>L17,H16>L17),"Neplatí předpoklad přímé úměrnosti napětí a přetvoření! Výsledky tedy nejsou platné!","") -> 

Sheet Krytí (hidden)
A1: Ø | B1: 14 | C1: mm | N1: Minimální hodnoty krycí vrstvy cmin,dur požadované z hlediska trvanlivosti pro betonářskou výztuž podle EN 10080 (tabulka převzata z normy ČSN EN 1992-1-1, kap. 4.2)
A2: cmin,b | B2: =B1 -> 14 | C2: mm | E2: minimální krycí vrstva z hlediska soudržnosti
A3: cmin,dur | B3: 20 | C3: mm | D3: dle tab 6.1 | E3: minimální krycí vrstva z hlediska podmínek prostředí
A4: Δcdur,γ | B4: 0 | E4: přídavná bezpečnostní složka
A5: Δcdur,st | B5: 0 | E5: redukce minimální krycí vrstvy při použití nerezové oceli
A6: Δcdur,add | B6: 0 | E6: redukce minimální krycí vrstvy při použití přídavné ochrany
A7: cmin | B7: =MAX(B2,B3+B4-B5-B6,10) -> 20 | C7: mm | E7: minimální krycí vrstva
A9: Δcdev | B9: 10 | C9: mm | E9: přídavek na návrhovou odchylku (0 – 10 mm dle technologie a kvality provádění)
A11: cnom | B11: =B7+B9 -> 30 | C11: mm
A14: Pevnostní třída: | D14: ='Kr1-GMZ'!C10 -> C 30/37
A15: Životnost: | D15: 50 let | N15: Doporučená úprava klasifikace konstrukcí (tabulka převzata z normy ČSN EN 1992-1-1, NA.2.19)
A16: Prostředí: | D16: XD1
A17: Konstrukční třída: | D17: S4

Sheet Kr4-Ohyb (hidden)
A1: Krok 4 - Výpočet šířky trhlin při existenci tlačené oblasti | K1: Krátkodobé | R1: N = | S1: ='Kr1-GMZ'!C30 -> 1
K2: Dlouhodobé | R2: Prostý M: | S2: σS | T2: x
A3: Výztuž: | B3: As | C3: d | D3: ⌀ | E3: σS | G3: Průřez: | S3: ='Kr3-Oh'!H23 -> 388.6860783 | T3: ='Kr3-Oh'!H16 -> 132.740644
B4: mm2 | C4: mm | D4: mm | E4: MPa | G4: h = | H4: ='Kr1-GMZ'!C4 -> 500 | I4: mm | K4: Varianta 2: V průřezu vzniknou trhliny a existuje i tlačená část | M4: Na průřezu s trhlinou a tlačenou částí | S4: ='Kr3-Oh'!H24 -> -104.9459886
A5: 1 | B5: ='Kr1-GMZ'!F24 -> 1570.796327 | C5: ='Kr1-GMZ'!H24 -> 454 | D5: ='Kr1-GMZ'!E24 -> 20 | E5: =IF(S1=0,S3,S6) -> 388.9809663 | G5: b = | H5: ='Kr1-GMZ'!C5 -> 300 | I5: mm | K5: Varianta 3: Trhlinou zcela porušený průřez | M5: Na trhlinou zcela porušený průřez | R5: M+N: | S5: σS | T5: x
A6: 2 | B6: ='Kr1-GMZ'!F25 -> 942.4777961 | C6: ='Kr1-GMZ'!H25 -> 46 | D6: ='Kr1-GMZ'!E25 -> 20 | E6: =IF(S1=0,S4,S7) -> -104.8826325 | S6: ='Kr3-M+N'!H31 -> 388.9809663 | T6: ='Kr3-M+N'!H20 -> 132.6476374
A7: Napětí v tažené výztuži: | K7: Výztuž s žebírkovým povrchem | S7: ='Kr3-M+N'!H32 -> -104.8826325
B8: σS = | C8: =MAX(E5,E6) -> 388.9809663 | D8: MPa | K8: Výztuž s hladkým povrchem
A9: Modul pružnosti výztuže a poměr modulu pružnosti betonu a výztuže:
B10: Es = | C10: ='Kr1-GMZ'!G13 -> 200 | D10: GPa | K10: Ohyb | P10: dtažené = | Q10: =IF(C8=E6,C6,IF(C8=E5,C5,"Chyba")) -> 454
B11: αe = | C11: ='Kr1-GMZ'!G14 -> 6.25 | K11: Prostý tah | P11: ⌀tažené = | Q11: =IF(C8=E6,D6,IF(C8=E5,D5,"Chyba")) -> 20
A12: Průměrná hodnota pevnosti betonu v tahu v okamžiku vzniku trhlin: | K12: Mimostředný tah/místní namáhání
B13: fct,eff = | C13: ='Kr1-GMZ'!C13 -> 2.9 | D13: MPa | P13: (εsm - εcm)1 = | Q13: =((0.001/C10)*(C8-C21*(C13/C23)*(1+C11*C23))) -> 0.001781267215
A14: Výška tlačené oblasti: | K14: Výztuž soudržná
B15: x = | C15: =IF(S1=0,T3,T6) -> 132.6476374 | D15: mm | K15: Výztuž nesoudržná | P15: Ast = | Q15: =IF(C8=E5,B5,IF(C8=E6,B6,"ChybaX")) -> 1570.796327
A16: Výška oblasti a plocha betonu obkloupující výztuž:
B17: hc,eff = | C17: =MIN(2.5*(H4-Q10),(H4-C15)/3) -> 115 | D17: mm | K17: =IF(B29=K14,1,0) -> 1
B18: Ac,eff = | C18: =C17*H5 -> 34500 | D18: mm2 | K18: =IF(K17=0,0,IF(C31<F31,1,0)) -> 1
A19: Součinitel doby trvání zatížení: | K19: =IF(AND(K17,K18),1,0) -> 1
B20: Zatížení: | C20: ='Kr1-GMZ'!D28 -> Dlouhodobé | K20: =IF(H40>H42,"Má být použito 7.11","Může být použito 7.14") -> Může být použito 7.14
B21: kt = | C21: =IF(C20=K1,0.6,IF(C20=K2,0.4,"Chyba0002")) -> 0.4 | K21: =IF(H40>H42,1,0) -> 0
A22: Účinný stupeň vyztužení efektivní tažené oblasti betonu: | K22: =IF(OR(K19,K21),1,0) -> 1
B23: ρp,eff = | C23: =(IF(C8=E5,B5,IF(C8=E6,B6,"ChybaX")))/C18 -> 0.04553032831 | K23: 1 znamená, že bude použito 7.11
A24: Rozdíl poměrných přetvoření výztuže a betonu:
B25: εsm - εcm = | C25: =IF(((0.001/C10)*(C8-C21*(C13/C23)*(1+C11*C23)))>(0.6*(0.001*C8/C10)),((0.001/C10)*(C8-C21*(C13/C23)*(1+C11*C23))),(0.6*(0.001*C8/C10))) -> 0.001781267215 | K25: =IF(H42>H40,"Hodnota dle vztahu 7.14 je větší než dle vztahu 7.11 => Lze ji použít","Hodnota dle vztahu 7.14 je menší než dle vztahu 7.11 => je nutno použít hodnotu dle vztahu 7.11") -> Hodnota dle vztahu 7.14 je větší než dle vztahu 7.11 => Lze ji použít
A27: Výpočet maximální vzdálenosti trhlin:
A28: Soudržnost výztuže:
B29: ='Kr1-GMZ'!C20 -> Výztuž soudržná | K29: ='Kr1-GMZ'!J24 -> 52
A30: Vzdálenost prutů tažené výztuže: | K30: ='Kr1-GMZ'!J25 -> 104
B31: sa = | C31: =IF(C8=E5,K29,IF(C8=E6,K30,"ChybaX")) -> 52 | D31: mm | E31: =IF(C31<F31,"<",">") -> < | F31: =5*(C43+C45/2) -> 230 | G31: mm = 5 (c + ⌀/2)
E32: =IF(C31<F31,"Vzdálenost prutů je malá","Vzdálenost prutů je velká") -> Vzdálenost prutů je malá
A33: Součinitel vlivu soudržnosti výztuže:
B34: ='Kr1-GMZ'!C21 -> Výztuž s žebírkovým povrchem
B35: k1 = | C35: =IF(B34=K7,0.8,IF(B34=K8,1.6,"Chyba0006")) -> 0.8
A36: Součinitel vlivu rozdělení poměrného přetvoření po výšce průřezu (typ namáhání):
B37: ='Kr1-GMZ'!D29 -> Ohyb
B38: k2 = | C38: =IF(B37=K10,0.5,IF(B37=K11,1,IF(B37=K12,((('Kr3-Tah'!H18+'Kr3-Tah'!H19)/(2*MAX('Kr3-Tah'!H18,'Kr3-Tah'!H19)))),"Chyba0006"))) -> 0.5
A39: Součinitele dle ČSN EN 1992-1-1: | F39: Maximální vzdálenost trhlin dle 7.11:
B40: k3 = | C40: =MIN(3.4*(25/C43)^(2/3),3.4) -> 2.666268748 | G40: sr, max = | H40: =C40*C43+C35*C38*C41*C45/C23 -> 170.6611742 | I40: mm
B41: k4 = | C41: 0.425 | F41: Maximální vzdálenost trhlin dle 7.14:
A42: Krytí výztuže: | G42: sr, max = | H42: =1.3*(H4-C15) -> 477.5580713 | I42: mm
B43: c = | C43: ='Kr1-GMZ'!G4+'Kr1-GMZ'!G5 -> 36 | D43: mm | F43: =IF(K22=1,"Použit vzorec 7.11 =>","Použit vzorec 7.14 =>") -> Použit vzorec 7.11 =>
A44: Průměr tažené výztuže: | G44: sr, max = | H44: =IF(K22=1,H40,H42) -> 170.6611742 | I44: mm
B45: ⌀ = | C45: =Q11 -> 20 | D45: mm
C47: Charakteristická šířka trhliny:
D48: wk = | E48: =H44*C25 -> 0.3039931546 | F48: mm

Sheet Kr4-Tah (hidden)
A1: Krok 4 - Výpočet šířky průběžných příčných trhlin | K1: Krátkodobé
K2: Dlouhodobé
A3: Výztuž: | B3: As | C3: d' | D3: ⌀ | E3: σS | G3: Průřez:
B4: mm2 | C4: mm | D4: mm | E4: MPa | G4: h = | H4: ='Kr1-GMZ'!C4 -> 500 | I4: mm | K4: Varianta 2: V průřezu vzniknou trhliny a existuje i tlačená část | M4: Na průřezu s trhlinou a tlačenou částí
A5: 1 | B5: ='Kr1-GMZ'!F24 -> 1570.796327 | C5: ='Kr1-GMZ'!I24 -> 454 | D5: ='Kr1-GMZ'!E24 -> 20 | E5: ='Kr3-Tah'!H15 -> 390.4039547 | G5: b = | H5: ='Kr1-GMZ'!C5 -> 300 | I5: mm | K5: Varianta 3: Trhlinou zcela porušený průřez | M5: Na trhlinou zcela porušený průřez
A6: 2 | B6: ='Kr1-GMZ'!F25 -> 942.4777961 | C6: ='Kr1-GMZ'!I25 -> 46 | D6: ='Kr1-GMZ'!E25 -> 20 | E6: ='Kr3-Tah'!H16 -> -649.6122249
K7: Výztuž s žebírkovým povrchem | P7: d1 = | Q7: ='Kr1-GMZ'!G24 -> 46
A8: Modul pružnosti výztuže a poměr modulu pružnosti betonu a výztuže: | K8: Výztuž s hladkým povrchem | P8: d2 = | Q8: ='Kr1-GMZ'!G25 -> 46
B9: Es = | C9: ='Kr1-GMZ'!G13 -> 200 | D9: GPa
B10: αe = | C10: ='Kr1-GMZ'!G14 -> 6.25 | K10: Ohyb
A11: Průměrná hodnota pevnosti betonu v tahu v okamžiku vzniku trhlin: | K11: Prostý tah
B12: fct,eff = | C12: ='Kr1-GMZ'!C13 -> 2.9 | D12: MPa | K12: Mimostředný tah/místní namáhání
A13: Výška oblasti a plocha betonu obkloupující výztuž:
B14: hc1,eff = | C14: =(MIN(2.5*(Q7),H4/2)) -> 115 | D14: mm | F14: hc2,eff = | G14: =(MIN(2.5*(Q8),H4/2)) -> 115 | H14: mm | K14: Výztuž soudržná
B15: Ac1,eff = | C15: =C14*H5 -> 34500 | D15: mm2 | F15: Ac2,eff = | G15: =G14*H5 -> 34500 | H15: mm2 | K15: Výztuž nesoudržná
A16: Součinitel doby trvání zatížení:
B17: Zatížení: | C17: ='Kr1-GMZ'!D28 -> Dlouhodobé | K17: =IF(B27=K14,1,0) -> 1
B18: kt = | C18: =IF(C17=K1,0.6,IF(C17=K2,0.4,"Chyba0002")) -> 0.4 | K18: =IF(K17=0,0,IF(C29<F29,1,0)) -> 1
K19: =IF(AND(K17,K18),1,0) -> 1
A20: Výpočet rozdílu poměrných přetvoření výztuže a betonu: | K20: =IF(M40>M43,"Má být použito 7.11","Může být použito 7.14") -> Může být použito 7.14
C21: v místě výztuže 1: | F21: v místě výztuže 2: | K21: =IF(M40>M43,1,0) -> 0
C22: ρp,eff = | D22: =B5/C15 -> 0.04553032831 | F22: ρp,eff = | G22: =B6/G15 -> 0.02731819699 | K22: =IF(OR(K19,K21),1,0) -> 1
C23: εsm - εcm = | D23: =IF(((0.001/C9)*(E5-C18*(C12/D22)*(1+C10*D22)))>(0.6*(0.001*E5/C9)),((0.001/C9)*(E5-C18*(C12/D22)*(1+C10*D22))),(0.6*(0.001*E5/C9))) -> 0.001788382157 | F23: εsm - εcm = | G23: =IF(((0.001/C9)*(E6-C18*(C12/G22)*(1+C10*G22)))>(0.6*(0.001*E6/C9)),((0.001/C9)*(E6-C18*(C12/G22)*(1+C10*G22))),(0.6*(0.001*E6/C9))) -> -0.001948836675 | K23: 1 znamená, že bude použito 7.11
K25: =IF(M43>M40,"Hodnota dle vztahu 7.14 je větší než dle vztahu 7.11 => Lze ji použít","Hodnota dle vztahu 7.14 je menší než dle vztahu 7.11 => je nutno použít hodnotu dle vztahu 7.11") -> Hodnota dle vztahu 7.14 je větší než dle vztahu 7.11 => Lze ji použít
A26: Soudržnost výztuže:
B27: ='Kr1-GMZ'!C20 -> Výztuž soudržná
A28: Vzdálenost prutů:
B29: sa1 = | C29: ='Kr1-GMZ'!J24 -> 52 | D29: mm | E29: =IF(C29<F29,"<",">") -> < | F29: =5*(C43+C45/2) -> 230 | G29: mm = 5 (c + ⌀/2)
E30: =IF(C29<F29,"Vzdálenost prutů je malá","Vzdálenost prutů je velká") -> Vzdálenost prutů je malá
B31: sa2 = | C31: ='Kr1-GMZ'!J25 -> 104 | D31: mm | E31: =IF(C31<F31,"<",">") -> < | F31: =5*(C43+C46/2) -> 230 | G31: mm = 5 (c + ⌀/2)
E32: =IF(C31<F31,"Vzdálenost prutů je malá","Vzdálenost prutů je velká") -> Vzdálenost prutů je malá
A33: Součinitel vlivu soudržnosti výztuže:
B34: ='Kr1-GMZ'!C21 -> Výztuž s žebírkovým povrchem
B35: k1 = | C35: =IF(B34=K7,0.8,IF(B34=K8,1.6,"Chyba0006")) -> 0.8
A36: Součinitel vlivu rozdělení poměrného přetvoření po výšce průřezu (typ namáhání):
B37: ='Kr1-GMZ'!D29 -> Ohyb
B38: k2 = | C38: =IF(B37=K10,0.5,IF(B37=K11,1,IF(B37=K12,((('Kr3-Tah'!H18+'Kr3-Tah'!H19)/(2*MAX('Kr3-Tah'!H18,'Kr3-Tah'!H19)))),"Chyba0006"))) -> 0.5
A39: Součinitele dle ČSN EN 1992-1-1: | K39: Maximální vzdálenost trhlin dle 7.11:
B40: k3 = | C40: =MIN(3.4*(25/C43)^(2/3),3.4) -> 2.666268748 | L40: sr1, max = | M40: =C40*C43+C35*C38*C41*C45/C48 -> 170.6611742 | N40: mm
B41: k4 = | C41: 0.425 | L41: sr2, max = | M41: =C40*C43+C35*C38*C41*C46/C49 -> 220.4448404 | N41: mm
A42: Krytí výztuže: | K42: Maximální vzdálenost trhlin dle 7.14:
B43: c = | C43: ='Kr1-GMZ'!G4+'Kr1-GMZ'!G5 -> 36 | D43: mm | L43: sr1, max = | M43: =1.3*(H4) -> 650 | N43: mm
A44: Průměr výztuže: | L44: sr2, max = | M44: =1.3*(H4) -> 650 | N44: mm
B45: ⌀1 = | C45: =D5 -> 20 | D45: mm | K45: =IF(K22=1,"Použit vzorec 7.11 =>","Použit vzorec 7.14 =>") -> Použit vzorec 7.11 =>
B46: ⌀2 = | C46: =D6 -> 20 | D46: mm | L46: sr1, max = | M46: =IF(K22=1,M40,M43) -> 170.6611742 | N46: mm
A47: Účinný stupeň vyztužení tažené oblasti betonu: | K47: =IF(M48=M41,"Použit vzorec 7.11 =>","Použit vzorec 7.14 =>") -> Použit vzorec 7.11 =>
B48: ρp1,eff = | C48: =D22 -> 0.04553032831 | L48: sr2, max = | M48: =IF(M44>M41,IF(B27=K14,IF(C31<F31,M41,M44),M44),M44) -> 220.4448404 | N48: mm
B49: ρp2,eff = | C49: =G22 -> 0.02731819699
A50: Maximální vzdálenost trhlin:
B51: sr1, max = | C51: =M46 -> 170.6611742 | D51: mm
B52: sr2, max = | C52: =M48 -> 220.4448404 | D52: mm
B53: =IF(C51>C52,"Maximální vzdálenost trhlin v místě výztuže 1 vychází větší než v místě výztuže 2.","Maximální vzdálenost trhlin v místě výztuže 2 vychází větší než v místě výztuže 1.") -> Maximální vzdálenost trhlin v místě výztuže 2 vychází větší než v místě výztuže 1.
B54: =IF(C51>C52,"Z důvodu bezpečnosti je tedy uvažována konzervativně hodnota maximální","Z důvodu bezpečnosti je tedy uvažována konzervativně hodnota maximální") -> Z důvodu bezpečnosti je tedy uvažována konzervativně hodnota maximální
B55: =IF(C51>C52,"vzdálenosti trhlin v místě výztuže 1.","vzdálenosti trhlin v místě výztuže 2.") -> vzdálenosti trhlin v místě výztuže 2.
B56: sr, max = | C56: =MAX(C51,C52) -> 220.4448404 | D56: mm
C58: Charakteristická šířka trhliny:
B59: v místě výztuže 1: | F59: v místě výztuže 2:
B60: wk = | C60: =C56*D23 -> 0.3942396193 | D60: mm | F60: wk = | G60: =C56*G23 -> -0.4296109898 | H60: mm

Sheet Kr5-V1 (hidden)
A1: Krok 5 - Závěr | K1: N = | L1: ='Kr1-GMZ'!C30 -> 1 | M1: kN
L2: Nehýbat (VBA)
A3: Střední hodnota pevnosti betonu v tahu:
B4: fct,eff = | C4: ='Kr2-An'!E20 -> 2.9 | D4: MPa
A6: Napětí v horních vláknech vyvolané působícím zatížením:
B7: σh = | C7: =IF('Kr1-GMZ'!C30=0,'Kr2-AnOh'!B14,'Kr2-An'!B20) -> -16.87085366 | D7: MPa
A8: Napětí ve spodních vláknech vyvolané působícím zatížením:
B9: σd = | C9: =IF('Kr1-GMZ'!C30=0,'Kr2-AnOh'!B15,'Kr2-An'!B21) -> 16.24258267 | D9: MPa
A11: Napětí splňují podmínky
C13: Trhliny kolmé ke střednici prvku tedy nevzniknou.

Sheet Kr5-V2 (hidden)
A1: Krok 5 - Závěr | K1: N = | L1: ='Kr1-GMZ'!C30 -> 1
K2: Prostý M: | L2: σh = | M2: ='Kr2-AnOh'!B14 -> -16.87721474
A3: Střední hodnota pevnosti betonu v tahu: | L3: σd = | M3: ='Kr2-AnOh'!B15 -> 16.23686194
B4: fct,eff = | C4: ='Kr2-An'!E20 -> 2.9 | D4: MPa | K4: N + M | L4: σh = | M4: ='Kr2-An'!B20 -> -16.87085366
L5: σd = | M5: ='Kr2-An'!B21 -> 16.24258267
A6: Napětí v horních vláknech vyvolané působícím zatížením:
B7: σh = | C7: =IF(L1=0,M2,M4) -> -16.87085366 | D7: MPa
A8: Napětí ve spodních vláknech vyvolané působícím zatížením:
B9: σd = | C9: =IF(L1=0,M3,M5) -> 16.24258267 | D9: MPa
A11: Napětí splňují podmínky
A15: V průřezu vznikají trhliny a část průřezu je tlačena.
A17: Rozdíl poměrných přetvoření výztuže a betonu:
B18: εsm - εcm = | C18: ='Kr4-Ohyb'!C25 -> 0.001781267215
A20: Maximální vzdálenost trhlin:
B21: sr, max = | C21: ='Kr4-Ohyb'!H44 -> 170.6611742 | D21: mm
A23: Charakteristická šířka trhliny:
B24: wk = | C24: ='Kr4-Ohyb'!E48 -> 0.3039931546 | D24: mm
E30: ='Kr3-M+N'!E40 -> 
E31: ='Kr3-M+N'!E41 -> 

Sheet Kr5-V3 (hidden)
A1: Krok 5 - Závěr
A3: Střední hodnota pevnosti betonu v tahu:
B4: fct,eff = | C4: ='Kr2-An'!E20 -> 2.9 | D4: MPa
A6: Napětí v horních vláknech vyvolané působícím zatížením:
B7: σh = | C7: ='Kr2-An'!B20 -> -16.87085366 | D7: MPa
A8: Napětí ve spodních vláknech vyvolané působícím zatížením:
B9: σd = | C9: ='Kr2-An'!B21 -> 16.24258267 | D9: MPa
A11: Napětí splňují podmínky
A13: Průřez je zcela porušen trhlinou.
A15: Rozdíl poměrných přetvoření výztuže a betonu:
B16: v místě výztuže 1: | D16: εsm - εcm = | E16: ='Kr4-Tah'!D23 -> 0.001788382157
B17: v místě výztuže 2: | D17: εsm - εcm = | E17: ='Kr4-Tah'!G23 -> -0.001948836675
A19: Maximální vzdálenost trhlin:
B20: sr, max = | C20: ='Kr4-Tah'!C56 -> 220.4448404 | D20: mm
A22: Charakteristická šířka trhliny:
B23: v místě výztuže 1: | D23: wk = | E23: ='Kr4-Tah'!C60 -> 0.3942396193 | F23: mm
B24: v místě výztuže 2: | D24: wk = | E24: ='Kr4-Tah'!G60 -> -0.4296109898 | F24: mm
E30: ='Kr3-Tah'!E26 -> 
E31: ='Kr3-Tah'!E27 -> 

Sheet T-V1 (hidden)
A1: Výpočet šířky trhlin železobetonového prvku
A3: 1) Vstupní hodnoty výpočtu
A5: Geometrie
B6: h = | C6: ='Kr1-GMZ'!C4 -> 500 | D6: mm | F6: c = | G6: ='Kr1-GMZ'!G4 -> 30 | H6: mm
B7: b = | C7: ='Kr1-GMZ'!C5 -> 300 | D7: mm | F7: ⌀tř = | G7: ='Kr1-GMZ'!G5 -> 6 | H7: mm
B8: AC = | C8: ='Kr1-GMZ'!C6 -> 150000 | D8: mm2
B9: aC = | C9: ='Kr1-GMZ'!C7 -> 250 | D9: mm
A11: Materiálové charakteristiky
B12: Beton: | C12: ='Kr1-GMZ'!C10 -> C 30/37 | F12: Ocel: | G12: ='Kr1-GMZ'!G10 -> B500B
B13: fck = | C13: ='Kr1-GMZ'!C11 -> 30 | D13: MPa | F13: fyk = | G13: ='Kr1-GMZ'!G11 -> 500 | H13: MPa
B14: fcd = | C14: ='Kr1-GMZ'!C12 -> 20 | D14: MPa | F14: fyd = | G14: ='Kr1-GMZ'!G12 -> 434.7826087 | H14: MPa
B15: fctm = | C15: ='Kr1-GMZ'!C13 -> 2.9 | D15: MPa | F15: Es = | G15: ='Kr1-GMZ'!G13 -> 200 | H15: GPa
B16: fctk0.05 = | C16: ='Kr1-GMZ'!C14 -> 2 | D16: MPa | F16: αe = | G16: ='Kr1-GMZ'!G14 -> 6.25
B17: εc = | C17: ='Kr1-GMZ'!M17 -> 0.0022
B18: εcu = | C18: ='Kr1-GMZ'!M18 -> 0.0035 | F18: Frakce kameniva:
B19: Ecm = | C19: ='Kr1-GMZ'!M19 -> 32 | D19: GPa | F19: Dmax = | G19: ='Kr1-GMZ'!G17 -> 16 | H19: mm
A21: Výztuž
B22: Typ: | C22: ='Kr1-GMZ'!C20:D20 -> Výztuž soudržná
B23: Typ: | C23: ='Kr1-GMZ'!C21:E21 -> Výztuž s žebírkovým povrchem
C24: i | D24: n | E24: ⌀ | F24: AS | G24: d | H24: d' | I24: sa
E25: mm | F25: mm2 | G25: mm | H25: mm | I25: mm
C26: ='Kr1-GMZ'!C24 -> 1 | D26: ='Kr1-GMZ'!D24 -> 5 | E26: ='Kr1-GMZ'!E24 -> 20 | F26: ='Kr1-GMZ'!F24 -> 1570.796327 | G26: ='Kr1-GMZ'!H24 -> 454 | H26: ='Kr1-GMZ'!I24 -> 454 | I26: ='Kr1-GMZ'!J24 -> 52
C27: ='Kr1-GMZ'!C25 -> 2 | D27: ='Kr1-GMZ'!D25 -> 3 | E27: ='Kr1-GMZ'!E25 -> 20 | F27: ='Kr1-GMZ'!F25 -> 942.4777961 | G27: ='Kr1-GMZ'!H25 -> 46 | H27: ='Kr1-GMZ'!I25 -> 46 | I27: ='Kr1-GMZ'!J25 -> 104
A29: Zatížení
B30: Doba trvání: | D30: ='Kr1-GMZ'!D28:E28 -> Dlouhodobé
B31: Typ namáhání: | D31: ='Kr1-GMZ'!D29:G29 -> Ohyb
B32: Nkd = | C32: ='Kr1-GMZ'!C30 -> 1 | D32: kN
B33: Mkd = | C33: ='Kr1-GMZ'!C31 -> 250 | D33: kNm
B35: ekd = | C35: =IF('Kr1-GMZ'!C30=0,"-",'Kr1-GMZ'!N31) -> 250000 | D35: mm
B37: Pozn.:
B38: Nkd je působící normálová síla vztažená k těžisti betonového průřezu.
B39: Mkd je působící ohybový moment vztažený k těžisti betonového průřezu.
B40: Klasická znaménková konvekce:
C41: Kladná osová síla značí tah.
C42: Kladný moment vyvozuje ve spodních vláknech tahy.
A44: Strana 1
A45: Výpočet šířky trhlin železobetonového prvku
A47: 2) Analýza vzniku trhlin
A54: Poměr modulu pružnosti betonu a modulu pružnosti výztuže:
B56: =G16 -> 6.25
A58: Plocha ideálního průřezu:
B60: ='Kr2-An'!H12 -> 0.1657079633 | C60: m2
A62: Vzdálenost těžistě ideálního průřezu od horního okraje:
B64: ='Kr2-An'!H14 -> 0.2548344456 | C64: m
A66: Vzdálenost těžiště betonové části průřezu od horních vláken:
B68: ='Kr1-GMZ'!C7/1000 -> 0.25 | C68: m
A70: Moment setrvačnosti betonové části průřezu k jeho těžišti:
B73: =(1/12)*C7*C6^3/1000000000000 -> 0.003125 | C73: m4
A75: Moment setrvačnosti ideálního průřezu k jeho těžišti:
B77: ='Kr2-An'!H13 -> 0.003774829695 | C77: m4
A79: Výstřednost síly od těžiště ideálního průřezu
B81: =(C35-(1000*B64-C9))/1000 -> 249.9951656 | C81: m
A83: Působící ohybový moment vztažený k těžisti ideálního průřezu:
B85: ='Kr2-An'!H18 -> 249995.1656 | C85: Nm
A88: Strana 2
A89: Výpočet šířky trhlin železobetonového prvku
A91: Pevnost betonu v tahu
B92: =C15 -> 2.9 | C92: MPa
A94: Napětí působící v dolních vláknech:
B97: ='Kr2-An'!B21 -> 16.24258267 | C97: MPa | E97: =B92 -> 2.9 | F97: MPa
A99: Napětí působící v horních vláknech:
B102: ='Kr2-An'!B20 -> -16.87085366 | C102: MPa | E102: =B92 -> 2.9 | F102: MPa
A104: Velikost maximálních napětí v krajních vláknech nepřekročila pevnost betonu v tahu.
A105: Trhliny od daného zatížení nevzniknou.
A132: Strana 3

Sheet T-V1oh (hidden)
A1: Výpočet šířky trhlin železobetonového prvku
A3: 1) Vstupní hodnoty výpočtu
A5: Geometrie
B6: h = | C6: ='Kr1-GMZ'!C4 -> 500 | D6: mm | F6: c = | G6: ='Kr1-GMZ'!G4 -> 30 | H6: mm
B7: b = | C7: ='Kr1-GMZ'!C5 -> 300 | D7: mm | F7: ⌀tř = | G7: ='Kr1-GMZ'!G5 -> 6 | H7: mm
B8: AC = | C8: ='Kr1-GMZ'!C6 -> 150000 | D8: mm2
B9: aC = | C9: ='Kr1-GMZ'!C7 -> 250 | D9: mm
A11: Materiálové charakteristiky
B12: Beton: | C12: ='Kr1-GMZ'!C10 -> C 30/37 | F12: Ocel: | G12: ='Kr1-GMZ'!G10 -> B500B
B13: fck = | C13: ='Kr1-GMZ'!C11 -> 30 | D13: MPa | F13: fyk = | G13: ='Kr1-GMZ'!G11 -> 500 | H13: MPa
B14: fcd = | C14: ='Kr1-GMZ'!C12 -> 20 | D14: MPa | F14: fyd = | G14: ='Kr1-GMZ'!G12 -> 434.7826087 | H14: MPa
B15: fctm = | C15: ='Kr1-GMZ'!C13 -> 2.9 | D15: MPa | F15: Es = | G15: ='Kr1-GMZ'!G13 -> 200 | H15: GPa
B16: fctk0.05 = | C16: ='Kr1-GMZ'!C14 -> 2 | D16: MPa | F16: αe = | G16: ='Kr1-GMZ'!G14 -> 6.25
B17: εc = | C17: ='Kr1-GMZ'!M17 -> 0.0022
B18: εcu = | C18: ='Kr1-GMZ'!M18 -> 0.0035 | F18: Frakce kameniva:
B19: Ecm = | C19: ='Kr1-GMZ'!M19 -> 32 | D19: GPa | F19: Dmax = | G19: ='Kr1-GMZ'!G17 -> 16 | H19: mm
A21: Výztuž
B22: Typ: | C22: ='Kr1-GMZ'!C20:D20 -> Výztuž soudržná
B23: Typ: | C23: ='Kr1-GMZ'!C21:E21 -> Výztuž s žebírkovým povrchem
C24: i | D24: n | E24: ⌀ | F24: AS | G24: d | H24: d' | I24: sa
E25: mm | F25: mm2 | G25: mm | H25: mm | I25: mm
C26: ='Kr1-GMZ'!C24 -> 1 | D26: ='Kr1-GMZ'!D24 -> 5 | E26: ='Kr1-GMZ'!E24 -> 20 | F26: ='Kr1-GMZ'!F24 -> 1570.796327 | G26: ='Kr1-GMZ'!H24 -> 454 | H26: ='Kr1-GMZ'!I24 -> 454 | I26: ='Kr1-GMZ'!J24 -> 52
C27: ='Kr1-GMZ'!C25 -> 2 | D27: ='Kr1-GMZ'!D25 -> 3 | E27: ='Kr1-GMZ'!E25 -> 20 | F27: ='Kr1-GMZ'!F25 -> 942.4777961 | G27: ='Kr1-GMZ'!H25 -> 46 | H27: ='Kr1-GMZ'!I25 -> 46 | I27: ='Kr1-GMZ'!J25 -> 104
A29: Zatížení
B30: Doba trvání: | D30: ='Kr1-GMZ'!D28:E28 -> Dlouhodobé
B31: Typ namáhání: | D31: ='Kr1-GMZ'!D29:G29 -> Ohyb
B32: Nkd = | C32: ='Kr1-GMZ'!C30 -> 1 | D32: kN
B33: Mkd = | C33: ='Kr1-GMZ'!C31 -> 250 | D33: kNm
B35: Pozn.:
B36: Nkd je působící normálová síla vztažená k těžisti betonového průřezu.
B37: Mkd je působící ohybový moment vztažený k těžisti betonového průřezu.
B38: Klasická znaménková konvekce:
C39: Kladná osová síla značí tah.
C40: Kladný moment vyvozuje ve spodních vláknech tahy.
A44: Strana 1
A45: Výpočet šířky trhlin železobetonového prvku
A47: 2) Analýza vzniku trhlin
A57: Poměr modulu pružnosti betonu a modulu pružnosti výztuže:
B59: =G16 -> 6.25
A61: Plocha ideálního průřezu:
B63: ='Kr2-AnOh'!H8 -> 0.1657079633 | C63: m2
A65: Vzdálenost těžistě ideálního průřezu od horního okraje:
B67: ='Kr2-AnOh'!H10 -> 0.2548344456 | C67: m
A69: Vzdálenost těžiště betonové části průřezu od horních vláken:
B71: =C9/1000 -> 0.25 | C71: m
A73: Moment setrvačnosti betonové části průřezu k jeho těžišti:
B76: =(1/12)*C7*C6^3/1000000000000 -> 0.003125 | C76: m4
A78: Moment setrvačnosti ideálního průřezu k jeho těžišti:
B80: ='Kr2-AnOh'!H9 -> 0.003774829695 | C80: m4
A88: Strana 2
A89: Výpočet šířky trhlin železobetonového prvku
A91: Pevnost betonu v tahu
B92: =C15 -> 2.9 | C92: MPa
A94: Napětí působící v dolních vláknech:
B97: ='Kr2-AnOh'!B15 -> 16.23686194 | C97: MPa | E97: =B92 -> 2.9 | F97: MPa
A99: Napětí působící v horních vláknech:
B102: ='Kr2-AnOh'!B14 -> -16.87721474 | C102: MPa | E102: =B92 -> 2.9 | F102: MPa
A104: Velikost maximálních napětí v krajních vláknech nepřekročila pevnost betonu v tahu.
A105: Trhliny od daného zatížení nevzniknou.
A132: Strana 3

Sheet T-V2 (hidden)
A1: Výpočet šířky trhlin železobetonového prvku
A3: 1) Vstupní hodnoty výpočtu
A5: Geometrie
B6: h = | C6: ='Kr1-GMZ'!C4 -> 500 | D6: mm | F6: c = | G6: ='Kr1-GMZ'!G4 -> 30 | H6: mm
B7: b = | C7: ='Kr1-GMZ'!C5 -> 300 | D7: mm | F7: ⌀tř = | G7: ='Kr1-GMZ'!G5 -> 6 | H7: mm
B8: AC = | C8: ='Kr1-GMZ'!C6 -> 150000 | D8: mm2
B9: aC = | C9: ='Kr1-GMZ'!C7 -> 250 | D9: mm
A11: Materiálové charakteristiky
B12: Beton: | C12: ='Kr1-GMZ'!C10 -> C 30/37 | F12: Ocel: | G12: ='Kr1-GMZ'!G10 -> B500B
B13: fck = | C13: ='Kr1-GMZ'!C11 -> 30 | D13: MPa | F13: fyk = | G13: ='Kr1-GMZ'!G11 -> 500 | H13: MPa
B14: fcd = | C14: ='Kr1-GMZ'!C12 -> 20 | D14: MPa | F14: fyd = | G14: ='Kr1-GMZ'!G12 -> 434.7826087 | H14: MPa
B15: fctm = | C15: ='Kr1-GMZ'!C13 -> 2.9 | D15: MPa | F15: Es = | G15: ='Kr1-GMZ'!G13 -> 200 | H15: GPa
B16: fctk0.05 = | C16: ='Kr1-GMZ'!C14 -> 2 | D16: MPa | F16: αe = | G16: ='Kr1-GMZ'!G14 -> 6.25
B17: εc = | C17: ='Kr1-GMZ'!M17 -> 0.0022
B18: εcu = | C18: ='Kr1-GMZ'!M18 -> 0.0035 | F18: Frakce kameniva:
B19: Ecm = | C19: ='Kr1-GMZ'!M19 -> 32 | D19: GPa | F19: Dmax = | G19: ='Kr1-GMZ'!G17 -> 16 | H19: mm
A21: Výztuž
B22: Typ: | C22: ='Kr1-GMZ'!C20:D20 -> Výztuž soudržná
B23: Typ: | C23: ='Kr1-GMZ'!C21:E21 -> Výztuž s žebírkovým povrchem
C24: i | D24: n | E24: ⌀ | F24: AS | G24: d | H24: d' | I24: sa
E25: mm | F25: mm2 | G25: mm | H25: mm | I25: mm
C26: ='Kr1-GMZ'!C24 -> 1 | D26: ='Kr1-GMZ'!D24 -> 5 | E26: ='Kr1-GMZ'!E24 -> 20 | F26: ='Kr1-GMZ'!F24 -> 1570.796327 | G26: ='Kr1-GMZ'!H24 -> 454 | H26: ='Kr1-GMZ'!I24 -> 454 | I26: ='Kr1-GMZ'!J24 -> 52
C27: ='Kr1-GMZ'!C25 -> 2 | D27: ='Kr1-GMZ'!D25 -> 3 | E27: ='Kr1-GMZ'!E25 -> 20 | F27: ='Kr1-GMZ'!F25 -> 942.4777961 | G27: ='Kr1-GMZ'!H25 -> 46 | H27: ='Kr1-GMZ'!I25 -> 46 | I27: ='Kr1-GMZ'!J25 -> 104
A29: Zatížení
B30: Doba trvání: | D30: ='Kr1-GMZ'!D28:E28 -> Dlouhodobé
B31: Typ namáhání: | D31: ='Kr1-GMZ'!D29:G29 -> Ohyb
B32: Nkd = | C32: ='Kr1-GMZ'!C30 -> 1 | D32: kN
B33: Mkd = | C33: ='Kr1-GMZ'!C31 -> 250 | D33: kNm
B35: ekd = | C35: =IF('Kr1-GMZ'!C30=0,"-",'Kr1-GMZ'!N31) -> 250000 | D35: mm
B37: Pozn.:
B38: Nkd je působící normálová síla vztažená k těžisti betonového průřezu.
B39: Mkd je působící ohybový moment vztažený k těžisti betonového průřezu.
B40: Klasická znaménková konvekce:
C41: Kladná osová síla značí tah.
C42: Kladný moment vyvozuje ve spodních vláknech tahy.
A44: Strana 1
A45: Výpočet šířky trhlin železobetonového prvku
A47: 2) Analýza vzniku trhlin
A54: Poměr modulu pružnosti betonu a modulu pružnosti výztuže:
B56: =G16 -> 6.25
A58: Plocha ideálního průřezu:
B60: ='Kr2-An'!H12 -> 0.1657079633 | C60: m2
A62: Vzdálenost těžistě ideálního průřezu od horního okraje:
B64: ='Kr2-An'!H14 -> 0.2548344456 | C64: m
A66: Vzdálenost těžiště betonové části průřezu od horních vláken:
B68: ='Kr1-GMZ'!C7/1000 -> 0.25 | C68: m
A70: Moment setrvačnosti betonové části průřezu k jeho těžišti:
B73: =(1/12)*C7*C6^3/1000000000000 -> 0.003125 | C73: m4
A75: Moment setrvačnosti ideálního průřezu k jeho těžišti:
B77: ='Kr2-An'!H13 -> 0.003774829695 | C77: m4
A79: Výstřednost síly od těžiště ideálního průřezu
B81: =(C35-(1000*B64-C9))/1000 -> 249.9951656 | C81: m
A83: Působící ohybový moment vztažený k těžisti ideálního průřezu:
B85: ='Kr2-An'!H18 -> 249995.1656 | C85: Nm
A88: Strana 2
A89: Výpočet šířky trhlin železobetonového prvku
A91: Pevnost betonu v tahu
B92: =C15 -> 2.9 | C92: MPa
A94: Napětí působící v dolních vláknech:
B97: ='Kr2-An'!B21 -> 16.24258267 | C97: MPa
A99: Napětí působící v horních vláknech:
B102: ='Kr2-An'!B20 -> -16.87085366 | C102: MPa
A104: Napětí v jedněch krajních vláknech překročilo pevnost betonu v tahu zatímco opačná krajní vlákna jsou tlačena.
A106: Trhliny od daného zatížení vzniknou.
A107: Pro výpočet napjatosti je zvolen model Průřez s trhlinou a tlačenou částí.
A110: 3) Výpočet napjatosti průřezu
A112: Výstřednost síly měřena od tlačených vláken:
B114: ='Kr3-M+N'!H11 -> 250250 | C114: mm
A116: Výška tlačené oblasti:
B119: ='Kr3-M+N'!H20 -> 132.6476374 | C119: mm (stanoveno iteračně)
A121: Plocha tlačené části betonového průřezu:
B123: ='Kr3-M+N'!H23 -> 39794.29123 | C123: mm2
A125: Moment setrvačnosti tlačené betonové části k jejímu těžišti:
B128: ='Kr3-M+N'!H24/1000 -> 58349.69181 | C128: ·103 mm4
A132: Strana 3
A133: Výpočet šířky trhlin železobetonového prvku
A135: Plocha ideálního průřezu:
B137: ='Kr3-M+N'!H26 -> 55502.2545 | C137: mm2
A139: Vzdálenost těžistě ideálního průřezu od horního okraje:
B141: ='Kr3-M+N'!H28 -> 132.7406673 | C141: mm
A143: Moment setrvačnosti ideálního průřezu k jeho těžišti:
B145: ='Kr3-M+N'!H27/1000 -> 1291447.705 | C145: ·103 mm4
A147: Napětí v betonu v krajních tlačených vláknech:
B150: ='Kr3-M+N'!H30 -> -25.69013318 | C150: MPa
A152: Napětí ve výztuži:
B155: ='Kr3-M+N'!H31 -> 388.9809663 | C155: MPa
B159: ='Kr3-M+N'!H32 -> -104.8826325 | C159: MPa
A176: Strana 4
A177: Výpočet šířky trhlin železobetonového prvku
A179: 4) Výpočet rozdílu poměrných přetvoření betonu a výztuže
A181: Tažená výztuž:
B182: ='Kr4-Ohyb'!C8 -> 388.9809663 | C182: MPa
B183: ='Kr4-Ohyb'!Q15 -> 1570.796327 | C183: mm2
A185: Modul pružnosti výztuže a pracovní součinitel (poměr modulu pružnosti betonu a výztuže):
B186: ='Kr4-Ohyb'!C10 -> 200 | C186: GPa
B187: ='Kr4-Ohyb'!C11 -> 6.25
A189: Průměrná hodnota pevnosti betonu v tahu v okamžiku vzniku trhlin:
B190: ='Kr4-Ohyb'!C13 -> 2.9 | C190: MPa
A192: Výška tlačené oblasti:
B193: ='Kr4-Ohyb'!C15 -> 132.6476374 | C193: mm
A195: Výška efektivní tažené oblasti betonu:
B197: ='Kr4-Ohyb'!C17 -> 115 | C197: mm
A199: Plocha efektivní tažené oblasti betonu:
B201: ='Kr4-Ohyb'!C18 -> 34500 | C201: mm2
A203: Účinný stupeň vyztužení efektivní tažené oblasti betonu:
B205: ='Kr4-Ohyb'!C23 -> 0.04553032831
A207: Součinitel vyjadřující vliv doby trvání zatížení:
B208: ='Kr4-Ohyb'!C21 -> 0.4 | C208: ="("&'Kr4-Ohyb'!C20:D20&")" -> (Dlouhodobé)
A210: Rozdíl poměrných přetvoření výztuže a betonu:
C213: ='Kr4-Ohyb'!Q13 -> 0.001781267215
C216: =0.6*0.001*B182/B186 -> 0.001166942899
C218: ='Kr4-Ohyb'!C25 -> 0.001781267215
A220: Strana 5
A221: Výpočet šířky trhlin železobetonového prvku
A223: 5) Výpočet maximální vzdálenosti trhlin
A225: Soudržnost výztuže:
B226: ='Kr4-Ohyb'!B29:C29 -> Výztuž soudržná
A228: Průměr tažené výztuže:
B229: ='Kr4-Ohyb'!C45 -> 20 | C229: mm
A231: Krytí podélné výztuže:
B232: ='Kr4-Ohyb'!C43 -> 36 | C232: mm
A234: Vzdálenost prutů tažené výztuže:
B235: ='Kr4-Ohyb'!C31 -> 52 | C235: mm | D235: ='Kr4-Ohyb'!E31 -> < | E235: ='Kr4-Ohyb'!F31 -> 230 | F235: mm
D236: ='Kr4-Ohyb'!E32 -> Vzdálenost prutů je malá
A238: Součinitel vlivu soudržnosti výztuže:
B239: ='Kr4-Ohyb'!B34:G34 -> Výztuž s žebírkovým povrchem
C240: ='Kr4-Ohyb'!C35 -> 0.8
A242: Součinitel vlivu rozdělení poměrného přetvoření po výšce průřezu (typ namáhání):
B243: ='Kr4-Ohyb'!B37 -> Ohyb
C244: ='Kr4-Ohyb'!C38 -> 0.5
A246: Součinitele dle ČSN EN 1992-1-1:
B250: ='Kr4-Ohyb'!C40 -> 2.666268748
B251: ='Kr4-Ohyb'!C41 -> 0.425
A253: Maximální vzdálenost trhlin dle vztahu A:
B256: ='Kr4-Ohyb'!H40 -> 170.6611742 | C256: mm
A258: Maximální vzdálenost trhlin dle vztahu B:
B260: ='Kr4-Ohyb'!H42 -> 477.5580713 | C260: mm
A264: Strana 6
A265: Výpočet šířky trhlin železobetonového prvku
A267: Hodnotu ze vztahu A lze použít v případě, že jsou splněny podmínky:
B268: Výztuž v tažené oblasti je s betonem soudržná | H268: =IF('Kr4-Ohyb'!K17=1,"VYHOVUJE","NEVYHOVUJE") -> VYHOVUJE
H269: =IF('Kr4-Ohyb'!C31<'Kr4-Ohyb'!F31,"VYHOVUJE","NEVYHOVUJE") -> VYHOVUJE
A270: nebo
B271: Hodnota dle vztahu A je větší než hodnota dle vztahu B | H271: =IF(B256>B260,"VYHOVUJE","NEVYHOVUJE") -> NEVYHOVUJE
A273: Maximální vzdálenost trhlin:
A274: =IF('Kr4-Ohyb'!K22=1,"Pro maximální vzdálenost trhlin je použita hodnota určená vztahem A.","Pro maximální vzdálenost trhlin je použita hodnota určená vztahem B.") -> Pro maximální vzdálenost trhlin je použita hodnota určená vztahem A.
B275: ='Kr4-Ohyb'!H44 -> 170.6611742 | C275: mm
A278: 6) Šířka trhlin
A280: Charakteristická šířka trhlin:
B282: ='Kr4-Ohyb'!E48 -> 0.3039931546 | C282: mm
A308: Strana 7

Sheet T-V2oh (hidden)
A1: Výpočet šířky trhlin železobetonového prvku
A3: 1) Vstupní hodnoty výpočtu
A5: Geometrie
B6: h = | C6: ='Kr1-GMZ'!C4 -> 500 | D6: mm | F6: c = | G6: ='Kr1-GMZ'!G4 -> 30 | H6: mm
B7: b = | C7: ='Kr1-GMZ'!C5 -> 300 | D7: mm | F7: ⌀tř = | G7: ='Kr1-GMZ'!G5 -> 6 | H7: mm
B8: AC = | C8: ='Kr1-GMZ'!C6 -> 150000 | D8: mm2
B9: aC = | C9: ='Kr1-GMZ'!C7 -> 250 | D9: mm
A11: Materiálové charakteristiky
B12: Beton: | C12: ='Kr1-GMZ'!C10 -> C 30/37 | F12: Ocel: | G12: ='Kr1-GMZ'!G10 -> B500B
B13: fck = | C13: ='Kr1-GMZ'!C11 -> 30 | D13: MPa | F13: fyk = | G13: ='Kr1-GMZ'!G11 -> 500 | H13: MPa
B14: fcd = | C14: ='Kr1-GMZ'!C12 -> 20 | D14: MPa | F14: fyd = | G14: ='Kr1-GMZ'!G12 -> 434.7826087 | H14: MPa
B15: fctm = | C15: ='Kr1-GMZ'!C13 -> 2.9 | D15: MPa | F15: Es = | G15: ='Kr1-GMZ'!G13 -> 200 | H15: GPa
B16: fctk0.05 = | C16: ='Kr1-GMZ'!C14 -> 2 | D16: MPa | F16: αe = | G16: ='Kr1-GMZ'!G14 -> 6.25
B17: εc = | C17: ='Kr1-GMZ'!M17 -> 0.0022
B18: εcu = | C18: ='Kr1-GMZ'!M18 -> 0.0035 | F18: Frakce kameniva:
B19: Ecm = | C19: ='Kr1-GMZ'!M19 -> 32 | D19: GPa | F19: Dmax = | G19: ='Kr1-GMZ'!G17 -> 16 | H19: mm
A21: Výztuž
B22: Typ: | C22: ='Kr1-GMZ'!C20:D20 -> Výztuž soudržná
B23: Typ: | C23: ='Kr1-GMZ'!C21:E21 -> Výztuž s žebírkovým povrchem
C24: i | D24: n | E24: ⌀ | F24: AS | G24: d | H24: d' | I24: sa
E25: mm | F25: mm2 | G25: mm | H25: mm | I25: mm
C26: ='Kr1-GMZ'!C24 -> 1 | D26: ='Kr1-GMZ'!D24 -> 5 | E26: ='Kr1-GMZ'!E24 -> 20 | F26: ='Kr1-GMZ'!F24 -> 1570.796327 | G26: ='Kr1-GMZ'!H24 -> 454 | H26: ='Kr1-GMZ'!I24 -> 454 | I26: ='Kr1-GMZ'!J24 -> 52
C27: ='Kr1-GMZ'!C25 -> 2 | D27: ='Kr1-GMZ'!D25 -> 3 | E27: ='Kr1-GMZ'!E25 -> 20 | F27: ='Kr1-GMZ'!F25 -> 942.4777961 | G27: ='Kr1-GMZ'!H25 -> 46 | H27: ='Kr1-GMZ'!I25 -> 46 | I27: ='Kr1-GMZ'!J25 -> 104
A29: Zatížení
B30: Doba trvání: | D30: ='Kr1-GMZ'!D28:E28 -> Dlouhodobé
B31: Typ namáhání: | D31: ='Kr1-GMZ'!D29:G29 -> Ohyb
B32: Nkd = | C32: ='Kr1-GMZ'!C30 -> 1 | D32: kN
B33: Mkd = | C33: ='Kr1-GMZ'!C31 -> 250 | D33: kNm
B35: Pozn.:
B36: Nkd je působící normálová síla vztažená k těžisti betonového průřezu.
B37: Mkd je působící ohybový moment vztažený k těžisti betonového průřezu.
B38: Klasická znaménková konvekce:
C39: Kladná osová síla značí tah.
C40: Kladný moment vyvozuje ve spodních vláknech tahy.
A44: Strana 1
A45: Výpočet šířky trhlin železobetonového prvku
A47: 2) Analýza vzniku trhlin
A57: Poměr modulu pružnosti betonu a modulu pružnosti výztuže:
B59: =G16 -> 6.25
A61: Plocha ideálního průřezu:
B63: ='Kr2-AnOh'!H8 -> 0.1657079633 | C63: m2
A65: Vzdálenost těžistě ideálního průřezu od horního okraje:
B67: ='Kr2-AnOh'!H10 -> 0.2548344456 | C67: m
A69: Vzdálenost těžiště betonové části průřezu od horních vláken:
B71: =C9/1000 -> 0.25 | C71: m
A73: Moment setrvačnosti betonové části průřezu k jeho těžišti:
B76: =(1/12)*C7*C6^3/1000000000000 -> 0.003125 | C76: m4
A78: Moment setrvačnosti ideálního průřezu k jeho těžišti:
B80: ='Kr2-AnOh'!H9 -> 0.003774829695 | C80: m4
A88: Strana 2
A89: Výpočet šířky trhlin železobetonového prvku
A91: Pevnost betonu v tahu
B92: =C15 -> 2.9 | C92: MPa
A94: Napětí působící v dolních vláknech:
B97: ='Kr2-AnOh'!B15 -> 16.23686194 | C97: MPa
A99: Napětí působící v horních vláknech:
B102: ='Kr2-AnOh'!B14 -> -16.87721474 | C102: MPa
A104: Napětí v jedněch krajních vláknech překročilo pevnost betonu v tahu zatímco opačná krajní vlákna jsou tlačena.
A106: Trhliny od daného zatížení vzniknou.
A107: Pro výpočet napjatosti je zvolen model Průřez s trhlinou a tlačenou částí.
A110: 3) Výpočet napjatosti průřezu
A112: Výška tlačené oblasti:
B116: ='Kr3-Oh'!$H$16 -> 132.740644 | C116: mm
A118: Moment setrvačnosti ideálního průřezu k jeho těžišti:
B121: ='Kr3-Oh'!H20/1000 -> 1291447.705 | C121: ·103 mm4
A123: Napětí v betonu v krajních tlačených vláknech:
B125: ='Kr3-Oh'!H22 -> -25.69609351 | C125: MPa
A127: Napětí ve výztuži:
B130: ='Kr3-Oh'!H23 -> 388.6860783 | C130: MPa | F130: ='Kr3-Oh'!H24 -> -104.9459886 | G130: MPa
A132: Strana 3
A133: Výpočet šířky trhlin železobetonového prvku
A135: 4) Výpočet rozdílu poměrných přetvoření betonu a výztuže
A137: Tažená výztuž:
B138: ='Kr4-Ohyb'!C8 -> 388.9809663 | C138: MPa
B139: ='Kr4-Ohyb'!Q15 -> 1570.796327 | C139: mm2
A141: Modul pružnosti výztuže a pracovní součinitel (poměr modulu pružnosti betonu a výztuže):
B142: ='Kr4-Ohyb'!C10 -> 200 | C142: GPa
B143: ='Kr4-Ohyb'!C11 -> 6.25
A145: Průměrná hodnota pevnosti betonu v tahu v okamžiku vzniku trhlin:
B146: ='Kr4-Ohyb'!C13 -> 2.9 | C146: MPa
A148: Výška tlačené oblasti:
B149: ='Kr4-Ohyb'!C15 -> 132.6476374 | C149: mm
A151: Výška efektivní tažené oblasti betonu:
B153: ='Kr4-Ohyb'!C17 -> 115 | C153: mm
A155: Plocha efektivní tažené oblasti betonu:
B157: ='Kr4-Ohyb'!C18 -> 34500 | C157: mm2
A159: Účinný stupeň vyztužení efektivní tažené oblasti betonu:
B161: ='Kr4-Ohyb'!C23 -> 0.04553032831
A163: Součinitel vyjadřující vliv doby trvání zatížení:
B164: ='Kr4-Ohyb'!C21 -> 0.4 | C164: ="("&'Kr4-Ohyb'!C20:D20&")" -> (Dlouhodobé)
A166: Rozdíl poměrných přetvoření výztuže a betonu:
C169: ='Kr4-Ohyb'!Q13 -> 0.001781267215
C172: =0.6*0.001*B138/B142 -> 0.001166942899
C174: ='Kr4-Ohyb'!C25 -> 0.001781267215
A176: Strana 4
A177: Výpočet šířky trhlin železobetonového prvku
A179: 5) Výpočet maximální vzdálenosti trhlin
A181: Soudržnost výztuže:
B182: ='Kr4-Ohyb'!B29:C29 -> Výztuž soudržná
A184: Průměr tažené výztuže:
B185: ='Kr4-Ohyb'!C45 -> 20 | C185: mm
A187: Krytí podélné výztuže:
B188: ='Kr4-Ohyb'!C43 -> 36 | C188: mm
A190: Vzdálenost prutů tažené výztuže:
B191: ='Kr4-Ohyb'!C31 -> 52 | C191: mm | D191: ='Kr4-Ohyb'!E31 -> < | E191: ='Kr4-Ohyb'!F31 -> 230 | F191: mm
D192: ='Kr4-Ohyb'!E32 -> Vzdálenost prutů je malá
A194: Součinitel vlivu soudržnosti výztuže:
B195: ='Kr4-Ohyb'!B34:G34 -> Výztuž s žebírkovým povrchem
C196: ='Kr4-Ohyb'!C35 -> 0.8
A198: Součinitel vlivu rozdělení poměrného přetvoření po výšce průřezu (typ namáhání):
B199: ='Kr4-Ohyb'!B37 -> Ohyb
C200: ='Kr4-Ohyb'!C38 -> 0.5
A202: Součinitele dle ČSN EN 1992-1-1:
B206: ='Kr4-Ohyb'!C40 -> 2.666268748
B207: ='Kr4-Ohyb'!C41 -> 0.425
A209: Maximální vzdálenost trhlin dle vztahu A:
B212: ='Kr4-Ohyb'!H40 -> 170.6611742 | C212: mm
A214: Maximální vzdálenost trhlin dle vztahu B:
B216: ='Kr4-Ohyb'!H42 -> 477.5580713 | C216: mm
A220: Strana 5
A221: Výpočet šířky trhlin železobetonového prvku
A223: Hodnotu ze vztahu A lze použít v případě, že jsou splněny podmínky:
B224: Výztuž v tažené oblasti je s betonem soudržná | H224: =IF('Kr4-Ohyb'!K17=1,"VYHOVUJE","NEVYHOVUJE") -> VYHOVUJE
H225: =IF('Kr4-Ohyb'!C31<'Kr4-Ohyb'!F31,"VYHOVUJE","NEVYHOVUJE") -> VYHOVUJE
A226: nebo
B227: Hodnota dle vztahu A je větší než hodnota dle vztahu B | H227: =IF(B212>B216,"VYHOVUJE","NEVYHOVUJE") -> NEVYHOVUJE
A229: Maximální vzdálenost trhlin:
A230: =IF('Kr4-Ohyb'!K22=1,"Pro maximální vzdálenost trhlin je použita hodnota určená vztahem A.","Pro maximální vzdálenost trhlin je použita hodnota určená vztahem B.") -> Pro maximální vzdálenost trhlin je použita hodnota určená vztahem A.
B231: ='Kr4-Ohyb'!H44 -> 170.6611742 | C231: mm
A234: 6) Šířka trhlin
A236: Charakteristická šířka trhlin:
B238: ='Kr4-Ohyb'!E48 -> 0.3039931546 | C238: mm
A264: Strana 6

Sheet T-V3 (hidden)
A1: Výpočet šířky trhlin železobetonového prvku
A3: 1) Vstupní hodnoty výpočtu
A5: Geometrie
B6: h = | C6: ='Kr1-GMZ'!C4 -> 500 | D6: mm | F6: c = | G6: ='Kr1-GMZ'!G4 -> 30 | H6: mm
B7: b = | C7: ='Kr1-GMZ'!C5 -> 300 | D7: mm | F7: ⌀tř = | G7: ='Kr1-GMZ'!G5 -> 6 | H7: mm
B8: AC = | C8: ='Kr1-GMZ'!C6 -> 150000 | D8: mm2
B9: aC = | C9: ='Kr1-GMZ'!C7 -> 250 | D9: mm
A11: Materiálové charakteristiky
B12: Beton: | C12: ='Kr1-GMZ'!C10 -> C 30/37 | F12: Ocel: | G12: ='Kr1-GMZ'!G10 -> B500B
B13: fck = | C13: ='Kr1-GMZ'!C11 -> 30 | D13: MPa | F13: fyk = | G13: ='Kr1-GMZ'!G11 -> 500 | H13: MPa
B14: fcd = | C14: ='Kr1-GMZ'!C12 -> 20 | D14: MPa | F14: fyd = | G14: ='Kr1-GMZ'!G12 -> 434.7826087 | H14: MPa
B15: fctm = | C15: ='Kr1-GMZ'!C13 -> 2.9 | D15: MPa | F15: Es = | G15: ='Kr1-GMZ'!G13 -> 200 | H15: GPa
B16: fctk0.05 = | C16: ='Kr1-GMZ'!C14 -> 2 | D16: MPa | F16: αe = | G16: ='Kr1-GMZ'!G14 -> 6.25
B17: εc = | C17: ='Kr1-GMZ'!M17 -> 0.0022
B18: εcu = | C18: ='Kr1-GMZ'!M18 -> 0.0035 | F18: Frakce kameniva:
B19: Ecm = | C19: ='Kr1-GMZ'!M19 -> 32 | D19: GPa | F19: Dmax = | G19: ='Kr1-GMZ'!G17 -> 16 | H19: mm
A21: Výztuž
B22: Typ: | C22: ='Kr1-GMZ'!C20:D20 -> Výztuž soudržná
B23: Typ: | C23: ='Kr1-GMZ'!C21:E21 -> Výztuž s žebírkovým povrchem
C24: i | D24: n | E24: ⌀ | F24: AS | G24: d | H24: d' | I24: sa
E25: mm | F25: mm2 | G25: mm | H25: mm | I25: mm
C26: ='Kr1-GMZ'!C24 -> 1 | D26: ='Kr1-GMZ'!D24 -> 5 | E26: ='Kr1-GMZ'!E24 -> 20 | F26: ='Kr1-GMZ'!F24 -> 1570.796327 | G26: ='Kr1-GMZ'!H24 -> 454 | H26: ='Kr1-GMZ'!I24 -> 454 | I26: ='Kr1-GMZ'!J24 -> 52
C27: ='Kr1-GMZ'!C25 -> 2 | D27: ='Kr1-GMZ'!D25 -> 3 | E27: ='Kr1-GMZ'!E25 -> 20 | F27: ='Kr1-GMZ'!F25 -> 942.4777961 | G27: ='Kr1-GMZ'!H25 -> 46 | H27: ='Kr1-GMZ'!I25 -> 46 | I27: ='Kr1-GMZ'!J25 -> 104
A29: Zatížení
B30: Doba trvání: | D30: ='Kr1-GMZ'!D28:E28 -> Dlouhodobé
B31: Typ namáhání: | D31: ='Kr1-GMZ'!D29:G29 -> Ohyb
B32: Nkd = | C32: ='Kr1-GMZ'!C30 -> 1 | D32: kN
B33: Mkd = | C33: ='Kr1-GMZ'!C31 -> 250 | D33: kNm
B35: ekd = | C35: =IF('Kr1-GMZ'!C30=0,"-",'Kr1-GMZ'!N31) -> 250000 | D35: mm
B37: Pozn.:
B38: Nkd je působící normálová síla vztažená k těžisti betonového průřezu.
B39: Mkd je působící ohybový moment vztažený k těžisti betonového průřezu.
B40: Klasická znaménková konvekce:
C41: Kladná osová síla značí tah.
C42: Kladný moment vyvozuje ve spodních vláknech tahy.
A44: Strana 1
A45: Výpočet šířky trhlin železobetonového prvku
A47: 2) Analýza vzniku trhlin
A54: Poměr modulu pružnosti betonu a modulu pružnosti výztuže:
B56: =G16 -> 6.25
A58: Plocha ideálního průřezu:
B60: ='Kr2-An'!H12 -> 0.1657079633 | C60: m2
A62: Vzdálenost těžistě ideálního průřezu od horního okraje:
B64: ='Kr2-An'!H14 -> 0.2548344456 | C64: m
A66: Vzdálenost těžiště betonové části průřezu od horních vláken:
B68: ='Kr1-GMZ'!C7/1000 -> 0.25 | C68: m
A70: Moment setrvačnosti betonové části průřezu k jeho těžišti:
B73: =(1/12)*C7*C6^3/1000000000000 -> 0.003125 | C73: m4
A75: Moment setrvačnosti ideálního průřezu k jeho těžišti:
B77: ='Kr2-An'!H13 -> 0.003774829695 | C77: m4
A79: Výstřednost síly od těžiště ideálního průřezu
B81: =(C35-(1000*B64-C9))/1000 -> 249.9951656 | C81: m
A83: Působící ohybový moment vztažený k těžisti ideálního průřezu:
B85: ='Kr2-An'!H18 -> 249995.1656 | C85: Nm
A88: Strana 2
A89: Výpočet šířky trhlin železobetonového prvku
A91: Pevnost betonu v tahu
B92: =C15 -> 2.9 | C92: MPa
A94: Napětí působící v dolních vláknech:
B97: ='Kr2-An'!B21 -> 16.24258267 | C97: MPa
A99: Napětí působící v horních vláknech:
B102: ='Kr2-An'!B20 -> -16.87085366 | C102: MPa
A104: =IF(OR('Kr2-An'!B20<0,'Kr2-An'!B21<0),"Napětí v jedněch krajních vláknech překročilo pevnost betonu v tahu zatímco opačná krajní vlákna jsou tlačena.","Napětí v obou krajních vláknech překročila pevnost betonu v tahu.") -> Napětí v jedněch krajních vláknech překročilo pevnost betonu v tahu zatímco opačná krajní vlákna jsou tlačena.
A106: Trhliny od daného zatížení vzniknou.
A107: =IF(OR('Kr2-An'!B20<0,'Kr2-An'!B21<0),"Pro výpočet napjatosti je zvolen model Průřez s trhlinou a tlačenou částí.","Pro výpočet napjatosti je zvolen model Průřez zcela porušen trhlinou.") -> Pro výpočet napjatosti je zvolen model Průřez s trhlinou a tlačenou částí.
A110: 3) Výpočet napjatosti průřezu
A112: Výstřednost síly měřena od tlačených vláken:
A113: e = | B113: ='T-V2'!$B$114 -> 250250 | C113: mm
A115: Výška tlačené oblasti:
A116: x = | B116: CHYBA | C116: mm (stanoveno iteračně)
A118: Řešení rovnice nebylo nalezeno, jelikož rovnice nemá řešení v intervalu dovolených hodnot.
B119: => tlačená oblast neexistuje => celý průřez je tažen
A120: Pro výpočet napjatosti je zvolen model Trhlinou zcela porušený průřez.
A132: Strana 3
A133: Výpočet šířky trhlin železobetonového prvku
A135: 3) Výpočet napjatosti průřezu
A137: Výstřednost síly měřena od horních vláken:
B139: ='Kr3-Tah'!H8 -> 250250 | C139: mm
A141: Plocha průřezu:
B143: ='Kr3-Tah'!H11 -> 2513.274123 | C143: mm2
A145: Vzdálenost těžistě ideálního průřezu od horního okraje:
B147: ='Kr3-Tah'!H13 -> 301 | C147: mm
A149: Moment setrvačnosti ideálního průřezu k jeho těžišti:
B152: ='Kr3-Tah'!H12/1000 -> 98055.3899 | C152: ·103 mm4
A154: Napětí ve výztuži:
B157: ='Kr3-Tah'!H15 -> 390.4039547 | C157: MPa
B161: ='Kr3-Tah'!H16 -> -649.6122249 | C161: MPa
A176: Strana 4
A177: Výpočet šířky trhlin železobetonového prvku
A179: 4) Výpočet rozdílu poměrných přetvoření betonu a výztuže
A181: Modul pružnosti výztuže a pracovní součinitel (poměr modulu pružnosti betonu a výztuže):
B182: ='Kr4-Tah'!C9 -> 200 | C182: GPa
B183: ='Kr4-Tah'!C10 -> 6.25
A185: Průměrná hodnota pevnosti betonu v tahu v okamžiku vzniku trhlin:
B186: ='Kr4-Tah'!C12 -> 2.9 | C186: MPa
A188: Výška efektivní tažené oblasti betonu:
B190: ='Kr4-Tah'!C14 -> 115 | C190: mm
B191: ='Kr4-Tah'!G14 -> 115 | C191: mm
A193: Plocha efektivní tažené oblasti betonu:
B195: ='Kr4-Tah'!C15 -> 34500 | C195: mm2
B196: ='Kr4-Tah'!G15 -> 34500 | C196: mm2
A198: Účinný stupeň vyztužení efektivní tažené oblasti betonu:
B200: ='Kr4-Tah'!D22 -> 0.04553032831
B201: ='Kr4-Tah'!G22 -> 0.02731819699
A203: Součinitel vyjadřující vliv doby trvání zatížení:
B204: ='Kr4-Tah'!C18 -> 0.4 | C204: ="("&'Kr4-Tah'!C17:D17&")" -> (Dlouhodobé)
A206: Rozdíl poměrných přetvoření výztuže a betonu:
C211: ='Kr4-Tah'!D23 -> 0.001788382157
C212: =0.6*0.001*B157/B182 -> 0.001171211864
C213: ='Kr4-Tah'!D23 -> 0.001788382157
C215: ='Kr4-Tah'!G23 -> -0.001948836675
C216: =0.6*0.001*B161/B182 -> -0.001948836675
C217: ='Kr4-Tah'!G23 -> -0.001948836675
A220: Strana 5
A221: Výpočet šířky trhlin železobetonového prvku
A223: 5) Výpočet maximální vzdálenosti trhlin
A225: Soudržnost výztuže:
B226: ='Kr4-Tah'!B27:C27 -> Výztuž soudržná
A228: Krytí podélné výztuže:
B229: ='Kr4-Tah'!C43 -> 36 | C229: mm
A231: Průměr tažené výztuže:
B232: ='Kr4-Tah'!D5 -> 20 | C232: mm
B233: ='Kr4-Tah'!D6 -> 20 | C233: mm
A235: Vzdálenost prutů tažené výztuže:
B236: ='Kr4-Tah'!C29 -> 52 | C236: mm | D236: ='Kr4-Tah'!E29 -> < | E236: ='Kr4-Tah'!F29 -> 230 | F236: mm
D237: ='Kr4-Tah'!E30 -> Vzdálenost prutů je malá
B239: ='Kr4-Tah'!C31 -> 104 | C239: mm | D239: ='Kr4-Tah'!E31 -> < | E239: ='Kr4-Tah'!F31 -> 230 | F239: mm
D240: ='Kr4-Tah'!E32 -> Vzdálenost prutů je malá
A242: Součinitel vlivu soudržnosti výztuže:
B243: ='Kr4-Tah'!B34:G34 -> Výztuž s žebírkovým povrchem
C244: ='Kr4-Tah'!C35 -> 0.8
A246: Součinitel vlivu rozdělení poměrného přetvoření po výšce průřezu (typ namáhání):
B247: ='Kr4-Tah'!B37 -> Ohyb
C248: ='Kr4-Tah'!C38 -> 0.5
A250: Součinitele dle ČSN EN 1992-1-1:
B254: ='Kr4-Tah'!C40 -> 2.666268748
B255: ='Kr4-Tah'!C41 -> 0.425
A257: Maximální vzdálenost trhlin v místě výztuže 1:
B258: Maximální vzdálenost trhlin dle vztahu A:
C261: ='Kr4-Tah'!M40 -> 170.6611742 | D261: mm
A264: Strana 6
A265: Výpočet šířky trhlin železobetonového prvku
B267: Maximální vzdálenost trhlin dle vztahu B:
C269: ='Kr4-Tah'!M43 -> 650 | D269: mm
B271: Hodnotu ze vztahu A lze použít v případě, že jsou splněny podmínky:
C272: Výztuž v tažené oblasti je s betonem soudržná | I272: =IF('Kr4-Tah'!K17=1,"VYHOVUJE","NEVYHOVUJE") -> VYHOVUJE
I273: =IF('Kr4-Tah'!C29<'Kr4-Tah'!F29,"VYHOVUJE","NEVYHOVUJE") -> VYHOVUJE
B274: nebo
C275: Hodnota dle vztahu A je větší než hodnota dle vztahu B | I275: =IF(C261>C269,"VYHOVUJE","NEVYHOVUJE") -> NEVYHOVUJE
B277: Maximální vzdálenost trhlin:
B278: =IF('Kr4-Tah'!K22=1,"Pro maximální vzdálenost trhlin je použita hodnota určená vztahem A.","Pro maximální vzdálenost trhlin je použita hodnota určená vztahem B.") -> Pro maximální vzdálenost trhlin je použita hodnota určená vztahem A.
C279: ='Kr4-Ohyb'!H44 -> 170.6611742 | D279: mm
A281: Maximální vzdálenost trhlin v místě výztuže 2:
B282: Maximální vzdálenost trhlin dle vztahu A:
C285: ='Kr4-Tah'!M41 -> 220.4448404 | D285: mm
B287: Maximální vzdálenost trhlin dle vztahu B:
C289: ='Kr4-Tah'!M44 -> 650 | D289: mm
B291: Hodnotu ze vztahu A lze použít v případě, že jsou splněny podmínky:
C292: Výztuž v tažené oblasti je s betonem soudržná | I292: =IF('Kr4-Tah'!K17=1,"VYHOVUJE","NEVYHOVUJE") -> VYHOVUJE
I293: =IF('Kr4-Tah'!C31<'Kr4-Tah'!F31,"VYHOVUJE","NEVYHOVUJE") -> VYHOVUJE
B294: nebo
C295: Hodnota dle vztahu A je větší než hodnota dle vztahu B | I295: =IF(C281>C289,"VYHOVUJE","NEVYHOVUJE") -> NEVYHOVUJE
B297: Maximální vzdálenost trhlin:
B298: =IF('Kr4-Tah'!C52='Kr4-Tah'!M41,"Pro maximální vzdálenost trhlin je použita hodnota určená vztahem A.","Pro maximální vzdálenost trhlin je použita hodnota určená vztahem B.") -> Pro maximální vzdálenost trhlin je použita hodnota určená vztahem A.
C299: ='Kr4-Tah'!C52 -> 220.4448404 | D299: mm
A301: Maximální vzdálenost trhlin:
A302: ='Kr4-Tah'!B53 -> Maximální vzdálenost trhlin v místě výztuže 2 vychází větší než v místě výztuže 1.
A303: ='Kr4-Tah'!B54 -> Z důvodu bezpečnosti je tedy uvažována konzervativně hodnota maximální
A304: ='Kr4-Tah'!B55 -> vzdálenosti trhlin v místě výztuže 2.
B305: ='Kr4-Tah'!C56 -> 220.4448404 | C305: mm
A308: Strana 7
A309: Výpočet šířky trhlin železobetonového prvku
A311: 6) Šířka trhlin
A313: Charakteristická šířka trhlin v místě výztuže 1:
B315: ='Kr4-Tah'!C60 -> 0.3942396193 | C315: mm
A317: Charakteristická šířka trhlin v místě výztuže 2:
B319: ='Kr4-Tah'!G60 -> -0.4296109898 | C319: mm
A352: Strana 8

Sheet Pomůcky
E2: Slouží k výpočtu minimální tloušťky krycí vrstvy
E4: Obsahuje předdefinované třídy betonu a oceli a možnost přidání vlastní třídy
E6: Kontakt na autora této výpočetní pomůcky

Sheet Dev (hidden)

Sheet Třídy materiálů (hidden)
C1: C 12/15 | D1: C 16/20 | E1: C 20/25 | F1: C 25/30 | G1: C 30/37 | H1: C 35/45 | I1: C 40/50 | J1: C 45/55 | K1: C 50/60 | L1: C 55/67 | M1: C 60/75 | N1: C 70/85 | O1: C 80/95 | P1: C 90/105 | Q1: Jiné: | S1: ='Kr1-GMZ'!C10 -> C 30/37
A2: fck = | B2: MPa | C2: 12 | D2: 16 | E2: 20 | F2: 25 | G2: 30 | H2: 35 | I2: 40 | J2: 45 | K2: 50 | L2: 55 | M2: 60 | N2: 70 | O2: 80 | P2: 95 | Q2: =10^(-9) -> 1e-09 | S2: =HLOOKUP(S1,C1:Q9,2,0) -> 30
A3: fcm = | B3: MPa | C3: 20 | D3: 24 | E3: 28 | F3: 33 | G3: 38 | H3: 43 | I3: 48 | J3: 53 | K3: 58 | L3: =L2+8 -> 63 | M3: =M2+8 -> 68 | N3: 78 | O3: 88 | P3: 103 | Q3: 1e-09 | S3: =HLOOKUP(S1,C1:Q9,3,0) -> 38
A4: fctm = | B4: MPa | C4: 1.6 | D4: 1.9 | E4: 2.2 | F4: 2.6 | G4: 2.9 | H4: 3.2 | I4: 3.5 | J4: 3.8 | K4: 4.1 | L4: 4.2 | M4: 4.4 | N4: 4.6 | O4: 4.8 | P4: 5 | Q4: 1e-09 | S4: =HLOOKUP(S1,C1:Q9,4,0) -> 2.9
A5: fctk0.05 = | B5: MPa | C5: 1.1 | D5: 1.3 | E5: 1.5 | F5: 1.8 | G5: 2 | H5: 2.2 | I5: 2.5 | J5: 2.7 | K5: 2.9 | L5: 3 | M5: 3.1 | N5: 3.2 | O5: 3.4 | P5: 3.5 | Q5: 1e-09 | S5: =HLOOKUP(S1,C1:Q9,5,0) -> 2
A6: fctk0.95 = | B6: MPa | C6: 2 | D6: 2.5 | E6: 2.9 | F6: 3.3 | G6: 3.8 | H6: 4.2 | I6: 4.6 | J6: 4.9 | K6: 5.3 | L6: 5.5 | M6: 5.7 | N6: 6 | O6: 6.3 | P6: 6.6 | Q6: 1e-09 | S6: =HLOOKUP(S1,C1:Q9,6,0) -> 3.8
A7: Ecm = | B7: GPa | C7: 27 | D7: 29 | E7: 30 | F7: 31 | G7: 32 | H7: 34 | I7: 35 | J7: 36 | K7: 37 | L7: 38 | M7: 39 | N7: 41 | O7: 42 | P7: 44 | Q7: 1e-09 | S7: =HLOOKUP(S1,C1:Q9,7,0) -> 32
A8: εc = | B8: ‰ | C8: 1.8 | D8: 1.9 | E8: 2 | F8: 2.1 | G8: 2.2 | H8: 2.25 | I8: 2.3 | J8: 2.4 | K8: 2.45 | L8: 2.5 | M8: 2.6 | N8: 2.7 | O8: 2.8 | P8: 2.8 | Q8: 1e-09 | S8: =HLOOKUP(S1,C1:Q9,8,0) -> 2.2
A9: εcu = | B9: ‰ | C9: 3.5 | D9: 3.5 | E9: 3.5 | F9: 3.5 | G9: 3.5 | H9: 3.5 | I9: 3.5 | J9: 3.5 | K9: 3.5 | L9: 3.2 | M9: 3 | N9: 2.8 | O9: 2.8 | P9: 2.8 | Q9: 1e-09 | S9: =HLOOKUP(S1,C1:Q9,9,0) -> 3.5
L12: B420B | M12: B500A | N12: B500B | O12: B550A | P12: B550B | Q12: Jiné: | S12: ='Kr1-GMZ'!G10 -> B500B
J13: fyk = | K13: MPa | L13: 420 | M13: 500 | N13: 500 | O13: 550 | P13: 550 | Q13: =10^(-9) -> 1e-09 | S13: =HLOOKUP(S12,L12:Q14,2,0) -> 500
J14: Es = | K14: GPa | L14: 200 | M14: 200 | N14: 200 | O14: 200 | P14: 200 | Q14: 200 | S14: =HLOOKUP(S12,L12:Q14,3,0) -> 200

Sheet Kontakt (hidden)
A1: Kontakt
A3: Při potížích s obsluhováním programu nebo při objevení chyby kontaktujte prosím autora.
B4: Jakub Holan
B5: jakub.holan@fsv.cvut.cz
B6: jakub.holan.93@gmail.com
